Workbook

Sheet Sheet2 (hidden)
A1: 분양대상 승강장목록
A3: 구분 | B3: 승강장 번호 | C3: 승강장명 | D3: 유개 승강장 | E3: 구별
A4: 1178 | B4: 45320 | C4: DCC 종점 | D4: 표준형 | E4: 유성구 | F4: 2353
A5: 187 | B5: 13440 | C5: e편한세상아파트 | D5: 표준형 | E5: 동구 | F5: 13037
A6: 711 | B6: 33220 | C6: GS칼텍스저유소 | D6: 표준형 | E6: 서구 | F6: 109 | H6: DCC종점(45320) | I6: 2353
A7: 1490 | B7: 53020 | C7: KT&G | D7: 표준형 | E7: 대덕구 | F7: 58 | H7: e편한세상아파트(13430) | I7: 11338
A8: 1506 | B8: 53240 | C8: KT&G사택 | D8: 구형 | E8: 대덕구 | F8: 103 | H8: e편한세상아파트(13440) | I8: 13037
A9: 1032 | B9: 42970 | C9: KT&G연구소 | D9: 구형 | E9: 유성구 | F9: 8030 | H9: e편한세상아파트(31220) | I9: 2202
A10: 577 | B10: 31390 | C10: KT서대전지사입구 | D10: 표준형 | E10: 서구 | F10: 5654 | H10: e편한세상아파트(31230) | I10: 1519
A11: 574 | B11: 31340 | C11: KT인재개발원 | D11: 구형 | E11: 서구 | F11: 7210 | H11: GS칼텍스저유소(33220) | I11: 109
A12: 575 | B12: 31350 | C12: KT인재개발원 | D12: 표준형 | E12: 서구 | F12: 7215 | H12: KAIST문지캠퍼스(44030) | I12: 1713
A13: 1098 | B13: 44020 | C13: LG화학기술연구원 | D13: 표준형 | E13: 유성구 | F13: 1570 | H13: KT&G(53020) | I13: 58
A14: 1105 | B14: 44140 | C14: LH연구원 | D14: 도시형 | E14: 유성구 | F14: 2219 | H14: KT&G사택(53240) | I14: 103
A15: 1106 | B15: 44150 | C15: LH연구원 | D15: 도시형 | E15: 유성구 | F15: 2063 | H15: KT&G연구소(42970) | I15: 8030
A16: 1046 | B16: 43320 | C16: MBC/TJB방송국 | D16: 표준형 | E16: 유성구 | F16: 4773 | H16: KT&G연구소(42971) | I16: 330
A17: 1047 | B17: 43330 | C17: MBC/TJB방송국 | D17: 표준형 | E17: 유성구 | F17: 4719 | H17: KT북대전지사(43400) | I17: 2109
A18: 639 | B18: 32220 | C18: SK브로드밴드 | D18: 구형 | E18: 서구 | F18: 25283 | H18: KT서대전지사입구(31390) | I18: 5654
A19: 159 | B19: 12740 | C19: 가는골 | D19: 구형 | E19: 동구 | F19: 37 | H19: KT서대전지사입구(31400) | I19: 1788
A20: 160 | B20: 12750 | C20: 가는골 | D20: 구형 | E20: 동구 | F20: 131 | H20: KT서대전지사입구(31410) | I20: 2866
A21: 668 | B21: 32650 | C21: 가람아파트 | D21: 구형 | E21: 서구 | F21: 50378 | H21: KT인재개발원(31340) | I21: 7210
A22: 539 | B22: 30800 | C22: 가수원교 | D22: 구형 | E22: 서구 | F22: 509 | H22: KT인재개발원(31350) | I22: 7215
A23: 710 | B23: 33200 | C23: 가수원네거리 | D23: 표준형 | E23: 서구 | F23: 4586 | H23: k-water인재개발원(44120) | I23: 291
A24: 818 | B24: 34930 | C24: 가수원네거리 | D24: 표준형 | E24: 서구 | F24: 2680 | H24: LG생활건강기술연구원(43410) | I24: 4113
A25: 698 | B25: 33020 | C25: 가수원도서관 | D25: 도시형 | E25: 서구 | F25: 1274 | H25: LG화학기술연구원(44020) | I25: 1570
A26: 699 | B26: 33030 | C26: 가수원도서관 | D26: 도시형 | E26: 서구 | F26: 358 | H26: LH연구원(44130) | I26: 270
A27: 705 | B27: 33120 | C27: 가수원시장 | D27: 표준형 | E27: 서구 | F27: 4287 | H27: LH연구원(44140) | I27: 2219
A28: 706 | B28: 33140 | C28: 가수원시장 | D28: 표준형 | E28: 서구 | F28: 1907 | H28: LH연구원(44150) | I28: 2063
A29: 708 | B29: 33180 | C29: 가수원역 | D29: 구형 | E29: 서구 | F29: 2712 | H29: MBC/TJB방송국(43320) | I29: 4773
A30: 709 | B30: 33190 | C30: 가수원역 | D30: 구형 | E30: 서구 | F30: 3864 | H30: MBC/TJB방송국(43330) | I30: 4719
A31: 700 | B31: 33040 | C31: 가수원육교/가수원시장 | D31: 표준형 | E31: 서구 | H31: SK뷰아파트(43130) | I31: 2502
A32: 703 | B32: 33070 | C32: 가수원육교/가수원시장 | D32: 장대형 | E32: 서구 | H32: SK브로드밴드(32220) | I32: 25283
A33: 704 | B33: 33100 | C33: 가수원파출소 | D33: 표준형 | E33: 서구 | H33: 가는골(12740) | I33: 37
A34: 813 | B34: 34870 | C34: 가수원파출소 | D34: 표준형 | E34: 서구 | H34: 가는골(12750) | I34: 131
A35: 105 | B35: 11540 | C35: 가양네거리 | D35: 구형 | E35: 동구 | H35: 가는골입구(14370) | I35: 37
A36: 108 | B36: 11580 | C36: 가양네거리 | D36: 도시형 | E36: 동구 | H36: 가는골입구(14380) | I36: 53
A37: 103 | B37: 11520 | C37: 가양도서관 | D37: 구형 | E37: 동구 | H37: 가람아파트(32650) | I37: 50378
A38: 104 | B38: 11530 | C38: 가양도서관 | D38: 표준형 | E38: 동구 | H38: 가목정마을(14000) | I38: 322
A39: 1392 | B39: 51620 | C39: 가양비래공원 | D39: 표준형 | E39: 대덕구 | H39: 가목정마을(14010) | I39: 264
A40: 1394 | B40: 51640 | C40: 가양비래공원 | D40: 표준형 | E40: 대덕구 | H40: 가수원교(30800) | I40: 509
A41: 1513 | B41: 53520 | C41: 가양비래공원네거리 | D41: 표준형 | E41: 대덕구 | H41: 가수원네거리(33200) | I41: 4586
A42: 1339 | B42: 51010 | C42: 가양중학교입구 | D42: 표준형 | E42: 대덕구 | H42: 가수원네거리(34930) | I42: 2680
A43: 107 | B43: 11570 | C43: 가양지구대 | D43: 표준형 | E43: 동구 | H43: 가수원도서관(33020) | I43: 1274
A44: 102 | B44: 11500 | C44: 가양초등학교 | D44: 표준형 | E44: 동구 | H44: 가수원도서관(33030) | I44: 358
A45: 234 | B45: 14340 | C45: 가오고등학교 | D45: 표준형 | E45: 동구 | H45: 가수원동(33080) | I45: 291
A46: 235 | B46: 14350 | C46: 가오고등학교 | D46: 표준형 | E46: 동구 | H46: 가수원동(33090) | I46: 315
A47: 18 | B47: 10310 | C47: 가오동 | D47: 표준형 | E47: 동구 | H47: 가수원시장(33120) | I47: 4287
A48: 23 | B48: 10360 | C48: 가오동네거리 | D48: 표준형 | E48: 동구 | H48: 가수원시장(33140) | I48: 1907
A49: 19 | B49: 10320 | C49: 가오주공아파트 | D49: 표준형 | E49: 동구 | H49: 가수원역(33180) | I49: 2712
A50: 20 | B50: 10330 | C50: 가오주공아파트 | D50: 표준형 | E50: 동구 | H50: 가수원역(33190) | I50: 3864
A51: 587 | B51: 31530 | C51: 가장교 | D51: 표준형 | E51: 서구 | H51: 가수원역(99999) | I51: 7
A52: 588 | B52: 31540 | C52: 가장교 | D52: 표준형 | E52: 서구 | H52: 가수원육교.가수원시장(33040) | I52: 81518
A53: 810 | B53: 34830 | C53: 가장교오거리 | D53: 도시형 | E53: 서구 | H53: 가수원육교.가수원시장(33070) | I53: 51377
A54: 811 | B54: 34840 | C54: 가장교오거리 | D54: 도시형 | E54: 서구 | H54: 가수원중학교(33130) | I54: 207
A55: 582 | B55: 31480 | C55: 가장네거리 | D55: 구형 | E55: 서구 | H55: 가수원중학교(33150) | I55: 110
A56: 584 | B56: 31500 | C56: 가장네거리 | D56: 구형 | E56: 서구 | H56: 가수원파출소(33100) | I56: 10909
A57: 581 | B57: 31470 | C57: 가장제일장로교회 | D57: 표준형 | E57: 서구 | H57: 가수원파출소(34870) | I57: 16433
A58: 625 | B58: 31950 | C58: 갈마2동주민센터 | D58: 구형 | E58: 서구 | H58: 가양네거리(11540) | I58: 9611
A59: 606 | B59: 31750 | C59: 갈마네거리 | D59: 구형 | E59: 서구 | H59: 가양네거리(11550) | I59: 25771
A60: 608 | B60: 31770 | C60: 갈마네거리 | D60: 구형 | E60: 서구 | H60: 가양네거리(11580) | I60: 12904
A61: 611 | B61: 31800 | C61: 갈마네거리 | D61: 구형 | E61: 서구 | H61: 가양도서관(11520) | I61: 16818
A62: 604 | B62: 31730 | C62: 갈마도서관 | D62: 도시형 | E62: 서구 | H62: 가양도서관(11530) | I62: 11489
A63: 614 | B63: 31830 | C63: 갈마삼거리 | D63: 도시형 | E63: 서구 | H63: 가양동우체국(11570) | I63: 12580
A64: 605 | B64: 31740 | C64: 갈마아파트2단지 | D64: 구형 | E64: 서구 | H64: 가양비래공원(51620) | I64: 9151
A65: 618 | B65: 31880 | C65: 갈마아파트3단지 | D65: 구형 | E65: 서구 | H65: 가양비래공원(51640) | I65: 10067
A66: 622 | B66: 31920 | C66: 갈마역 | D66: 표준형 | E66: 서구 | H66: 가양비래공원네거리(53510) | I66: 213
A67: 624 | B67: 31940 | C67: 갈마역 | D67: 구형 | E67: 서구 | H67: 가양비래공원네거리(53520) | I67: 280
A68: 685 | B68: 32870 | C68: 갈마역 | D68: 구형 | E68: 서구 | H68: 가양중학교입구(51010) | I68: 7684
A69: 620 | B69: 31900 | C69: 갈마육교 | D69: 표준형 | E69: 서구 | H69: 가양초등학교(11500) | I69: 11512
A70: 621 | B70: 31910 | C70: 갈마육교 | D70: 구형 | E70: 서구 | H70: 가양초등학교(11510) | I70: 10901
A71: 607 | B71: 31760 | C71: 갈마중학교입구 | D71: 도시형 | E71: 서구 | H71: 가오고등학교(14340) | I71: 3144
A72: 610 | B72: 31790 | C72: 갈마중학교입구 | D72: 표준형 | E72: 서구 | H72: 가오고등학교(14350) | I72: 3329
A73: 613 | B73: 31820 | C73: 갈마초등학교 | D73: 구형 | E73: 서구 | H73: 가오동(10290) | I73: 42
A74: 616 | B74: 31860 | C74: 갈마초등학교 | D74: 도시형 | E74: 서구 | H74: 가오동(10300) | I74: 3904
A75: 1464 | B75: 52610 | C75: 갈전동 | D75: 표준형 | E75: 대덕구 | H75: 가오동(10310) | I75: 3163
A76: 969 | B76: 42170 | C76: 갑동 | D76: 구형 | E76: 유성구 | H76: 가오동(14360) | I76: 510
A77: 970 | B77: 42180 | C77: 갑동 | D77: 구형 | E77: 유성구 | H77: 가오동네거리(10360) | I77: 4912
A78: 671 | B78: 32700 | C78: 갑천역 | D78: 표준형 | E78: 서구 | H78: 가오동네거리(10370) | I78: 4275
A79: 672 | B79: 32710 | C79: 갑천역 | D79: 표준형 | E79: 서구 | H79: 가오주공아파트(10320) | I79: 8557
A80: 797 | B80: 34680 | C80: 강변아파트 | D80: 구형 | E80: 서구 | H80: 가오주공아파트(10330) | I80: 7209
A81: 559 | B81: 31050 | C81: 개나리아파트 | D81: 구형 | E81: 서구 | H81: 가장교(31530) | I81: 5270
A82: 695 | B82: 32990 | C82: 건양대병원 | D82: 구형 | E82: 서구 | H82: 가장교(31540) | I82: 5107
A83: 741 | B83: 33560 | C83: 건양대병원네거리 | D83: 표준형 | E83: 서구 | H83: 가장교오거리(34830) | I83: 1125
A84: 743 | B84: 33590 | C84: 건양대병원네거리 | D84: 구형 | E84: 서구 | H84: 가장교오거리(34840) | I84: 1443
A85: 746 | B85: 33620 | C85: 건양대병원네거리 | D85: 표준형 | E85: 서구 | H85: 가장네거리(31480) | I85: 7446
A86: 747 | B86: 33630 | C86: 건양대병원네거리 | D86: 표준형 | E86: 서구 | H86: 가장네거리(31500) | I86: 4944
A87: 505 | B87: 30370 | C87: 경남아파트 | D87: 도시형 | E87: 서구 | H87: 가장제일장로교회(31470) | I87: 1493
A88: 510 | B88: 30450 | C88: 경남아파트 | D88: 구형 | E88: 서구 | H88: 가화리(5945) | I88: 1319
A89: 906 | B89: 40980 | C89: 계룡과선교 | D89: 구형 | E89: 유성구 | H89: 가화리(62430) | I89: 338
A90: 907 | B90: 41000 | C90: 계룡과선교 | D90: 표준형 | E90: 유성구 | H90: 갈마2동주민센터(31950) | I90: 16310
A91: 1228 | B91: 45980 | C91: 계룡과선교 | D91: 구형 | E91: 유성구 | H91: 갈마네거리(31750) | I91: 24828
A92: 146 | B92: 12340 | C92: 계룡디지텍고입구 | D92: 표준형 | E92: 동구 | H92: 갈마네거리(31770) | I92: 33058
A93: 1242 | B93: 46210 | C93: 계룡리슈빌아파트 | D93: 표준형 | E93: 유성구 | H93: 갈마네거리(31800) | I93: 7176
A94: 888 | B94: 40490 | C94: 계산동 | D94: 구형 | E94: 유성구 | H94: 갈마도서관(31730) | I94: 9946
A95: 786 | B95: 34500 | C95: 고릿골구름다리 | D95: 구형 | E95: 서구 | H95: 갈마삼거리(31830) | I95: 18007
A96: 787 | B96: 34510 | C96: 고릿골구름다리 | D96: 구형 | E96: 서구 | H96: 갈마아파트2단지(31740) | I96: 17226
A97: 196 | B97: 13620 | C97: 고산사입구 | D97: 표준형 | E97: 동구 | H97: 갈마아파트3단지(31880) | I97: 24442
A98: 197 | B98: 13630 | C98: 고산사입구 | D98: 구형 | E98: 동구 | H98: 갈마역(31920) | I98: 5765
A99: 1292 | B99: 50410 | C99: 공구백화점 | D99: 도시형 | E99: 대덕구 | H99: 갈마역(31940) | I99: 2760
A100: 506 | B100: 30380 | C100: 공굴안 | D100: 구형 | E100: 서구 | H100: 갈마역(32870) | I100: 6091
A101: 507 | B101: 30390 | C101: 공굴안 | D101: 구형 | E101: 서구 | H101: 갈마육교(31900) | I101: 25614
A102: 565 | B102: 31190 | C102: 공작아파트 | D102: 구형 | E102: 서구 | H102: 갈마육교(31910) | I102: 15853
A103: 209 | B103: 13880 | C103: 공주마을 | D103: 표준형 | E103: 동구 | H103: 갈마중학교입구(31760) | I103: 4906
A104: 210 | B104: 13890 | C104: 공주마을 | D104: 표준형 | E104: 동구 | H104: 갈마중학교입구(31790) | I104: 4077
A105: 389 | B105: 22170 | C105: 과례마을 | D105: 표준형 | E105: 중구 | H105: 갈마초등학교(31820) | I105: 3568
A106: 729 | B106: 33440 | C106: 관저네거리 | D106: 표준형 | E106: 서구 | H106: 갈마초등학교(31860) | I106: 2794
A107: 732 | B107: 33470 | C107: 관저네거리 | D107: 구형 | E107: 서구 | H107: 갈전동(52600) | I107: 79
A108: 846 | B108: 35570 | C108: 관저더샵1단지 | D108: 표준형 | E108: 서구 | H108: 갈전동(52610) | I108: 127
A109: 842 | B109: 35520 | C109: 관저동예미지아파트 | D109: 표준형 | E109: 서구 | H109: 감골(40650) | I109: 36
A110: 843 | B110: 35530 | C110: 관저동예미지아파트 | D110: 표준형 | E110: 서구 | H110: 감골(40660) | I110: 23
A111: 744 | B111: 33600 | C111: 관저중학교 | D111: 표준형 | E111: 서구 | H111: 감나무골입구(14440) | I111: 14
A112: 733 | B112: 33480 | C112: 관저지하차도 | D112: 표준형 | E112: 서구 | H112: 감나무골입구(14450) | I112: 18
A113: 854 | B113: 35790 | C113: 관저체육공원 | D113: 표준형 | E113: 서구 | H113: 갑동(42170) | I113: 775
A114: 1140 | B114: 44550 | C114: 관평중학교 | D114: 표준형 | E114: 유성구 | H114: 갑동(42180) | I114: 799
A115: 789 | B115: 34540 | C115: 괴곡동고리골 | D115: 구형 | E115: 서구 | H115: 갑천역(32700) | I115: 299
A116: 576 | B116: 31360 | C116: 괴정네거리 | D116: 표준형 | E116: 서구 | H116: 갑천역(32710) | I116: 772
A117: 600 | B117: 31670 | C117: 괴정네거리 | D117: 구형 | E117: 서구 | H117: 강변아파트(34680) | I117: 2096
A118: 876 | B118: 40250 | C118: 교도소입구 | D118: 구형 | E118: 유성구 | H118: 개나리아파트(31050) | I118: 39531
A119: 881 | B119: 40300 | C119: 교촌3통 | D119: 표준형 | E119: 유성구 | H119: 갤러리아타임월드(32040) | I119: 29417
A120: 882 | B120: 40310 | C120: 교촌3통 | D120: 표준형 | E120: 유성구 | H120: 갤러리아타임월드(32050) | I120: 31854
A121: 860 | B121: 40050 | C121: 교촌초등학교 | D121: 표준형 | E121: 유성구 | H121: 갤러리아타임월드(32120) | I121: 94837
A122: 525 | B122: 30660 | C122: 구농도원 | D122: 표준형 | E122: 서구 | H122: 건양대병원(32990) | I122: 24569
A123: 526 | B123: 30670 | C123: 구농도원 | D123: 표준형 | E123: 서구 | H123: 건양대병원네거리(33560) | I123: 24909
A124: 527 | B124: 30680 | C124: 구농도원네거리 | D124: 구형 | E124: 서구 | H124: 건양대병원네거리(33590) | I124: 8694
A125: 528 | B125: 30690 | C125: 구농도원네거리 | D125: 구형 | E125: 서구 | H125: 건양대병원네거리(33620) | I125: 3305
A126: 207 | B126: 13800 | C126: 구도동 | D126: 표준형 | E126: 동구 | H126: 건양대병원네거리(33630) | I126: 43444
A127: 208 | B127: 13810 | C127: 구도동 | D127: 표준형 | E127: 동구 | H127: 검천리(72440) | I127: 45
A128: 1170 | B128: 45210 | C128: 구룡 | D128: 도시형 | E128: 유성구 | H128: 검천리(72450) | I128: 33
A129: 839 | B129: 35450 | C129: 구만리 | D129: 표준형 | E129: 서구 | H129: 경남아파트(30370) | I129: 1048
A130: 835 | B130: 35310 | C130: 구봉고등학교 | D130: 표준형 | E130: 서구 | H130: 경남아파트(30400) | I130: 1878
A131: 719 | B131: 33330 | C131: 구봉마을5단지 | D131: 구형 | E131: 서구 | H131: 경남아파트(30450) | I131: 15879
A132: 720 | B132: 33340 | C132: 구봉마을7단지 | D132: 구형 | E132: 서구 | H132: 계룡과선교(40980) | I132: 269
A133: 723 | B133: 33380 | C133: 구봉마을7단지 | D133: 구형 | E133: 서구 | H133: 계룡과선교(40990) | I133: 172
A134: 724 | B134: 33390 | C134: 구봉마을8단지 | D134: 구형 | E134: 서구 | H134: 계룡과선교(45980) | I134: 85
A135: 725 | B135: 33400 | C135: 구봉마을8단지 | D135: 구형 | E135: 서구 | H135: 계룡디지텍고입구(12340) | I135: 13414
A136: 726 | B136: 33410 | C136: 구봉마을9단지 | D136: 구형 | E136: 서구 | H136: 계룡리슈빌아파트(46210) | I136: 4831
A137: 1023 | B137: 42870 | C137: 구성삼거리 | D137: 표준형 | E137: 유성구 | H137: 계룡시보건소(73050) | I137: 2864
A138: 925 | B138: 41440 | C138: 구암8통 | D138: 구형 | E138: 유성구 | H138: 계룡시보건소(73100) | I138: 3124
A139: 930 | B139: 41520 | C139: 구암동 | D139: 표준형 | E139: 유성구 | H139: 계룡시선거관리위원회(73950) | I139: 403
A140: 931 | B140: 41530 | C140: 구암동 | D140: 표준형 | E140: 유성구 | H140: 계룡시선거관리위원회(73960) | I140: 425
A141: 934 | B141: 41560 | C141: 구암역 | D141: 표준형 | E141: 유성구 | H141: 계룡시청(73090) | I141: 442
A142: 935 | B142: 41570 | C142: 구암역 | D142: 표준형 | E142: 유성구 | H142: 계룡시청(73800) | I142: 468
A143: 895 | B143: 40740 | C143: 구억들 | D143: 표준형 | E143: 유성구 | H143: 계룡아파트(30020) | I143: 7366
A144: 435 | B144: 22780 | C144: 구완동 | D144: 표준형 | E144: 중구 | H144: 계룡역(73460) | I144: 2425
A145: 1179 | B145: 45330 | C145: 구즉동주민센터입구 | D145: 표준형 | E145: 유성구 | H145: 계룡역(73820) | I145: 728
A146: 1059 | B146: 43500 | C146: 국가정보자원관리원 | D146: 구형 | E146: 유성구 | H146: 계산동(40490) | I146: 539
A147: 1073 | B147: 43670 | C147: 국군대전병원 | D147: 구형 | E147: 유성구 | H147: 계산동(40500) | I147: 416
A148: 1074 | B148: 43680 | C148: 국군대전병원 | D148: 구형 | E148: 유성구 | H148: 고도리(5648) | I148: 117
A149: 1066 | B149: 43570 | C149: 국립과학수사연구원 | D149: 표준형 | E149: 유성구 | H149: 고도리(5649) | I149: 144
A150: 1097 | B150: 44010 | C150: 국립문화재연구소 | D150: 표준형 | E150: 유성구 | H150: 고릿골구름다리(34500) | I150: 198
A151: 1028 | B151: 42930 | C151: 국립중앙과학관 | D151: 구형 | E151: 유성구 | H151: 고릿골구름다리(34510) | I151: 217
A152: 1267 | B152: 46610 | C152: 국립중앙과학관 | D152: 표준형 | E152: 유성구 | H152: 고산사입구(13620) | I152: 5432
A153: 946 | B153: 41700 | C153: 국립현충원 | D153: 표준형 | E153: 유성구 | H153: 고산사입구(13630) | I153: 6925
A154: 948 | B154: 41720 | C154: 국립현충원 | D154: 표준형 | E154: 유성구 | H154: 곡남리종점(74460) | I154: 524
A155: 557 | B155: 31030 | C155: 국민연금대전지사 | D155: 구형 | E155: 서구 | H155: 곡남리종점(74470) | I155: 535
A156: 1084 | B156: 43810 | C156: 국방과학연구소 | D156: 신형 | E156: 유성구 | H156: 곡남삼거리(74550) | I156: 118
A157: 1085 | B157: 43820 | C157: 국방과학연구소 | D157: 표준형 | E157: 유성구 | H157: 곡남삼거리(74560) | I157: 69
A158: 1514 | B158: 53550 | C158: 국방신뢰성연구센터 | D158: 표준형 | E158: 대덕구 | H158: 공구백화점(50400) | I158: 2254
A159: 1075 | B159: 43690 | C159: 국방지형정보단 | D159: 구형 | E159: 유성구 | H159: 공구백화점(50410) | I159: 2080
A160: 1087 | B160: 43860 | C160: 군수사령부 | D160: 표준형 | E160: 유성구 | H160: 공굴안(30380) | I160: 3863
A161: 1088 | B161: 43870 | C161: 군수사령부 | D161: 표준형 | E161: 유성구 | H161: 공굴안(30390) | I161: 5252
A162: 1079 | B162: 43730 | C162: 군인아파트 | D162: 도시형 | E162: 유성구 | H162: 공동관리아파트(43150) | I162: 5626
A163: 1009 | B163: 42690 | C163: 궁동 | D163: 구형 | E163: 유성구 | H163: 공동관리아파트(43180) | I163: 2464
A164: 1010 | B164: 42700 | C164: 궁동 | D164: 도시형 | E164: 유성구 | H164: 공작아파트(31190) | I164: 7388
A165: 965 | B165: 42130 | C165: 궁동교 | D165: 구형 | E165: 유성구 | H165: 공주마을(13880) | I165: 456
A166: 961 | B166: 42070 | C166: 궁동네거리 | D166: 구형 | E166: 유성구 | H166: 공주마을(13890) | I166: 727
A167: 964 | B167: 42120 | C167: 궁동네거리 | D167: 구형 | E167: 유성구 | H167: 과례마을(22160) | I167: 1604
A168: 966 | B168: 42140 | C168: 궁동네거리 | D168: 구형 | E168: 유성구 | H168: 과례마을(22170) | I168: 2239
A169: 517 | B169: 30540 | C169: 귀빈장네거리 | D169: 도시형 | E169: 서구 | H169: 과학기술연합대학원(UST)(43090) | I169: 3463
A170: 1154 | B170: 44710 | C170: 그린아파트 | D170: 구형 | E170: 유성구 | H170: 관저2동행정복지센터(33460) | I170: 8952
A171: 1359 | B171: 51230 | C171: 그린아파트 | D171: 표준형 | E171: 대덕구 | H171: 관저네거리(33440) | I171: 841
A172: 1360 | B172: 51240 | C172: 그린아파트 | D172: 구형 | E172: 대덕구 | H172: 관저네거리(33470) | I172: 10220
A173: 1361 | B173: 51250 | C173: 그린아파트 | D173: 표준형 | E173: 대덕구 | H173: 관저네거리(35740) | I173: 131
A174: 1352 | B174: 51160 | C174: 근로복지공단대전병원 | D174: 표준형 | E174: 대덕구 | H174: 관저더샵1단지(35570) | I174: 1235
A175: 1502 | B175: 53200 | C175: 금강로하스대청공원 | D175: 표준형 | E175: 대덕구 | H175: 관저더샵2단지(35560) | I175: 1845
A176: 1488 | B176: 52990 | C176: 금강로하스타워 | D176: 표준형 | E176: 대덕구 | H176: 관저동예미지아파트(35520) | I176: 1778
A177: 1395 | B177: 51660 | C177: 금강엑슬루타워 | D177: 표준형 | E177: 대덕구 | H177: 관저동예미지아파트(35530) | I177: 1531
A178: 1397 | B178: 51680 | C178: 금강엑슬루타워 | D178: 표준형 | E178: 대덕구 | H178: 관저중학교(33600) | I178: 19371
A179: 1512 | B179: 53370 | C179: 금강엑슬루타워정문 | D179: 구형 | E179: 대덕구 | H179: 관저지하차도(33480) | I179: 3044
A180: 472 | B180: 23620 | C180: 금동 | D180: 표준형 | E180: 중구 | H180: 관저체육공원(35270) | I180: 934
A181: 721 | B181: 33350 | C181: 금동초등학교 | D181: 구형 | E181: 서구 | H181: 관저체육공원(35780) | I181: 192
A182: 1390 | B182: 51600 | C182: 금성백조아파트 | D182: 구형 | E182: 대덕구 | H182: 관저체육공원(35790) | I182: 349
A183: 1391 | B183: 51610 | C183: 금성백조아파트 | D183: 표준형 | E183: 대덕구 | H183: 관평중학교(44550) | I183: 40315
A184: 748 | B184: 33700 | C184: 기성농협 | D184: 표준형 | E184: 서구 | H184: 관평중학교(44560) | I184: 50406
A185: 765 | B185: 34040 | C185: 기성초등학교 | D185: 표준형 | E185: 서구 | H185: 괴곡동.고리골(34530) | I185: 79
A186: 766 | B186: 34050 | C186: 기성초등학교 | D186: 표준형 | E186: 서구 | H186: 괴곡동.고리골(34540) | I186: 6
A187: 1408 | B187: 51790 | C187: 기흥기계 | D187: 표준형 | E187: 대덕구 | H187: 괴정네거리(31360) | I187: 9842
A188: 1412 | B188: 51830 | C188: 기흥기계 | D188: 표준형 | E188: 대덕구 | H188: 괴정네거리(31670) | I188: 10624
A189: 658 | B189: 32520 | C189: 꿈나무아파트 | D189: 도시형 | E189: 서구 | H189: 괴정네거리(31680) | I189: 1551
A190: 71 | B190: 10990 | C190: 꿈에그린아파트 | D190: 도시형 | E190: 동구 | H190: 괴정네거리(31690) | I190: 1060
A191: 1237 | B191: 46160 | C191: 꿈에그린아파트 | D191: 표준형 | E191: 유성구 | H191: 괴정동주민센터(31370) | I191: 5922
A192: 1238 | B192: 46170 | C192: 꿈에그린아파트 | D192: 표준형 | E192: 유성구 | H192: 괴정동주민센터(31380) | I192: 6061
A193: 1401 | B193: 51720 | C193: 남경마을 | D193: 표준형 | E193: 대덕구 | H193: 교도소(40350) | I193: 1453
A194: 1475 | B194: 52830 | C194: 남경마을 | D194: 표준형 | E194: 대덕구 | H194: 교도소입구(40240) | I194: 383
A195: 314 | B195: 21040 | C195: 남대전고등학교 | D195: 구형 | E195: 중구 | H195: 교도소입구(40250) | I195: 287
A196: 315 | B196: 21060 | C196: 남대전고등학교 | D196: 도시형 | E196: 중구 | H196: 교촌3통(40300) | I196: 1311
A197: 299 | B197: 20870 | C197: 남대전등기소 | D197: 구형 | E197: 중구 | H197: 교촌3통(40310) | I197: 288
A198: 300 | B198: 20880 | C198: 남대전등기소 | D198: 구형 | E198: 중구 | H198: 교촌동(82110) | I198: 25
A199: 21 | B199: 10340 | C199: 남대전변전소 | D199: 표준형 | E199: 동구 | H199: 교촌초등학교(40040) | I199: 2355
A200: 22 | B200: 10350 | C200: 남대전변전소 | D200: 표준형 | E200: 동구 | H200: 교촌초등학교(40050) | I200: 2912
A201: 205 | B201: 13780 | C201: 남대전종합물류단지 | D201: 표준형 | E201: 동구 | H201: 구농도원(30660) | I201: 9111
... 2442 more rows

Sheet Sheet1 (hidden)
C4: 구봉고등학교(35310) | D4: 2218 | E4: 39 | F4: 7
C5: 구봉고등학교(35320) | D5: 106 | E5: 1480 | F5: 0
C6: 구봉마을5단지(33330) | D6: 10352 | E6: 1382 | F6: 1046
C7: 구봉마을7단지(33340) | D7: 7042 | E7: 1270 | F7: 385
C8: 구봉마을7단지(33380) | D8: 1446 | E8: 4049 | F8: 20
C9: 구봉마을8단지(33390) | D9: 6238 | E9: 979 | F9: 83
C10: 구봉마을8단지(33400) | D10: 1039 | E10: 4407 | F10: 11
C11: 구봉마을9단지(33410) | D11: 5448 | E11: 998 | F11: 81
C12: 구샤또호텔(11880) | D12: 780 | E12: 1478 | F12: 83
C13: 구성삼거리(42870) | D13: 1637 | E13: 275 | F13: 3
C14: 구암8통(41430) | D14: 70 | E14: 853 | F14: 29
C15: 구암8통(41440) | D15: 450 | E15: 399 | F15: 44
C16: 구암동(41520) | D16: 970 | E16: 1536 | F16: 196
C17: 구암동(41530) | D17: 1448 | E17: 828 | F17: 125
C18: 구암동(80550) | D18: 33 | E18: 607 | F18: 10
C19: 구암동(82270) | D19: 441 | E19: 87 | F19: 14
C20: 구암역(41560) | D20: 8392 | E20: 1511 | F20: 6693
C21: 구암역(41570) | D21: 1734 | E21: 8142 | F21: 796
C22: 구암역(82080) | D22: 144 | E22: 813 | F22: 101
C23: 구암역(82170) | D23: 303 | E23: 135 | F23: 217
C24: 구억들(40740) | D24: 153 | E24: 0 | F24: 0
C25: 구억들(40760) | D25: 0 | E25: 72 | F25: 0
C26: 구완2교(23570) | D26: 1 | E26: 22 | F26: 0
C27: 구완2교(3065) | D27: 51 | E27: 29 | F27: 0
C28: 구완동(22780) | D28: 13 | E28: 17 | F28: 0
C29: 구절골(13180) | D29: 230 | E29: 16 | F29: 2
C30: 구절골(13190) | D30: 4 | E30: 229 | F30: 0
C31: 구즉동주민센터(82510) | D31: 410 | E31: 2 | F31: 0
C32: 구즉동주민센터(82520) | D32: 1 | E32: 166 | F32: 0
C33: 구즉동주민센터입구(45330) | D33: 1144 | E33: 98 | F33: 57
C34: 구즉동주민센터입구(45340) | D34: 15 | E34: 462 | F34: 3
C35: 구즉초등학교(82530) | D35: 698 | E35: 3 | F35: 9
C36: 구즉초등학교(82540) | D36: 1 | E36: 339 | F36: 0
C37: 국가정보자원관리원(43500) | D37: 2166 | E37: 422 | F37: 7
C38: 국군대전병원(43670) | D38: 612 | E38: 135 | F38: 7
C39: 국군대전병원(43680) | D39: 85 | E39: 361 | F39: 0
C40: 국군대전병원(82600) | D40: 2 | E40: 26 | F40: 0
C41: 국립과학수사연구원(43570) | D41: 713 | E41: 106 | F41: 2
C42: 국립과학수사연구원(43580) | D42: 115 | E42: 528 | F42: 1
C43: 국립대전숲체원(46670) | D43: 120 | E43: 76 | F43: 0
C44: 국립문화재연구소(44010) | D44: 250 | E44: 1219 | F44: 3
C45: 국립중앙과학관(42930) | D45: 2852 | E45: 1661 | F45: 858
C46: 국립중앙과학관(43190) | D46: 842 | E46: 987 | F46: 176
C47: 국립현충원(41700) | D47: 94 | E47: 707 | F47: 14
C48: 국립현충원(41720) | D48: 464 | E48: 117 | F48: 13
C49: 국민연금서대전지사(31030) | D49: 5305 | E49: 4837 | F49: 327
C50: 국방과학연구소입구(43810) | D50: 337 | E50: 2 | F50: 22
C51: 국방과학연구소입구(43820) | D51: 3 | E51: 426 | F51: 0
C52: 국방신뢰성연구센터(53550) | D52: 66 | E52: 123 | F52: 0
C53: 국방지형정보단(43690) | D53: 26 | E53: 162 | F53: 0
C54: 국제금식기도원(14390) | D54: 1 | E54: 17 | F54: 0
C55: 국제금식기도원(14400) | D55: 9 | E55: 1 | F55: 0
C56: 국화아파트(31290) | D56: 11405 | E56: 10266 | F56: 3121
C57: 군북면사무소(62280) | D57: 669 | E57: 618 | F57: 0
C58: 군북면사무소(62290) | D58: 578 | E58: 685 | F58: 1
C59: 군수사령부(43860) | D59: 666 | E59: 2791 | F59: 71
C60: 군수사령부(43870) | D60: 11 | E60: 214 | F60: 0
C61: 군인아파트(43730) | D61: 1172 | E61: 118 | F61: 14
C62: 군인아파트(82070) | D62: 8 | E62: 101 | F62: 0
C63: 군인아파트(82190) | D63: 0 | E63: 332 | F63: 0
C64: 군인아파트노인정(82070) | D64: 107 | E64: 0 | F64: 0
C65: 군인아파트종점(82210) | D65: 287 | E65: 81 | F65: 2
C66: 궁동(42690) | D66: 8826 | E66: 18969 | F66: 1522
C67: 궁동(42700) | D67: 19521 | E67: 4194 | F67: 1340
C68: 궁동교(42130) | D68: 2517 | E68: 1866 | F68: 111
C69: 귀빈장네거리(30540) | D69: 6473 | E69: 421 | F69: 79
C70: 그린아파트(44710) | D70: 6373 | E70: 609 | F70: 384
C71: 그린아파트(51230) | D71: 416 | E71: 166 | F71: 8
C72: 그린아파트(51240) | D72: 6292 | E72: 4776 | F72: 257
C73: 그린아파트(51250) | D73: 54 | E73: 467 | F73: 5
C74: 근로복지공단대전병원(51160) | D74: 1687 | E74: 505 | F74: 154
C75: 금강로하스대청공원(53190) | D75: 26 | E75: 120 | F75: 1
C76: 금강로하스대청공원(53200) | D76: 51 | E76: 1 | F76: 1
C77: 금강로하스타워(52990) | D77: 10 | E77: 8 | F77: 4
C78: 금강로하스타워(53000) | D78: 1 | E78: 25 | F78: 0
C79: 금강엑슬루타워(51660) | D79: 5854 | E79: 3199 | F79: 918
C80: 금강엑슬루타워(51680) | D80: 3979 | E80: 3317 | F80: 216
C81: 금강엑슬루타워정문(53370) | D81: 1629 | E81: 0 | F81: 18
C82: 금강유역환경청(42920) | D82: 528 | E82: 612 | F82: 92
C83: 금고1통(44920) | D83: 3 | E83: 2 | F83: 0
C84: 금고1통(44940) | D84: 0 | E84: 15 | F84: 0
C85: 금고2통(44860) | D85: 50 | E85: 1 | F85: 0
C86: 금고2통(44870) | D86: 20 | E86: 67 | F86: 19
C87: 금고동(44930) | D87: 8 | E87: 0 | F87: 0
C88: 금고동(44950) | D88: 0 | E88: 16 | F88: 0
C89: 금고동매립장(44900) | D89: 0 | E89: 1 | F89: 0
C90: 금고동매립장(44910) | D90: 0 | E90: 5 | F90: 0
C91: 금남초등학교(75150) | D91: 0 | E91: 7 | F91: 0
C92: 금남초등학교(75160) | D92: 5 | E92: 0 | F92: 2
C93: 금동(23110) | D93: 88 | E93: 35 | F93: 5
C94: 금동(23620) | D94: 29 | E94: 39 | F94: 0
C95: 금동이고개(23690) | D95: 5 | E95: 0 | F95: 0
C96: 금동이고개(23700) | D96: 1 | E96: 23 | F96: 0
C97: 금동종점(23090) | D97: 28 | E97: 93 | F97: 0
C98: 금동종점(23100) | D98: 56 | E98: 18 | F98: 0
C99: 금동초등학교(33350) | D99: 1539 | E99: 5574 | F99: 342
C100: 금성마을(12780) | D100: 60 | E100: 1 | F100: 0
C101: 금성마을(12790) | D101: 1 | E101: 91 | F101: 0
C102: 금성백조아파트(51600) | D102: 9472 | E102: 4341 | F102: 620
C103: 금성백조아파트(51610) | D103: 4939 | E103: 8159 | F103: 649
C104: 금암2통(73060) | D104: 40 | E104: 27 | F104: 0
C105: 금암2통(73080) | D105: 31 | E105: 31 | F105: 2
C106: 금암삼거리(77670) | D106: 38 | E106: 28 | F106: 0
C107: 금암삼거리(77680) | D107: 14 | E107: 108 | F107: 0
C108: 금암주공아파트(73970) | D108: 1446 | E108: 971 | F108: 14
C109: 금암주공아파트(73980) | D109: 1146 | E109: 1166 | F109: 9
C110: 금오골(62350) | D110: 40 | E110: 34 | F110: 0
C111: 금탄동종점(45060) | D111: 235 | E111: 155 | F111: 2
C112: 금호중학교(75250) | D112: 22 | E112: 45 | F112: 0
C113: 금호중학교(75260) | D113: 5 | E113: 0 | F113: 0
C114: 기성농협(33700) | D114: 203 | E114: 312 | F114: 48
C115: 기성중학교(33750) | D115: 19 | E115: 68 | F115: 1
C116: 기성중학교(33760) | D116: 24 | E116: 78 | F116: 1
C117: 기성초등학교(34040) | D117: 81 | E117: 31 | F117: 1
C118: 기성초등학교(34050) | D118: 18 | E118: 113 | F118: 4
C119: 기흥기계(51790) | D119: 75 | E119: 2283 | F119: 19
C120: 기흥기계(51830) | D120: 4731 | E120: 3441 | F120: 697
C121: 길재고개(75310) | D121: 5 | E121: 0 | F121: 0
C122: 길재고개(75320) | D122: 0 | E122: 2 | F122: 0
C123: 꽃묘생산단지(46420) | D123: 0 | E123: 73 | F123: 0
C124: 꽃묘생산단지(46430) | D124: 223 | E124: 8 | F124: 0
C125: 꿈나무아파트(32520) | D125: 15661 | E125: 6223 | F125: 943
C126: 꿈에그린아파트(10970) | D126: 6126 | E126: 26 | F126: 32
C127: 꿈에그린아파트(10990) | D127: 1173 | E127: 7290 | F127: 40
C128: 꿈에그린아파트(46160) | D128: 1395 | E128: 3910 | F128: 21
C129: 꿈에그린아파트(46170) | D129: 4104 | E129: 946 | F129: 30
C130: 남경마을(51720) | D130: 6239 | E130: 1585 | F130: 774
C131: 남경마을(52830) | D131: 3048 | E131: 7809 | F131: 593
C132: 남대문공원(61220) | D132: 0 | E132: 47 | F132: 0
C133: 남대문공원(61230) | D133: 54 | E133: 0 | F133: 1
C134: 남대문리(61190) | D134: 22 | E134: 0 | F134: 0
C135: 남대문리(61200) | D135: 0 | E135: 33 | F135: 0
C136: 남대전고등학교(21040) | D136: 4178 | E136: 4105 | F136: 1125
C137: 남대전고등학교(21060) | D137: 2714 | E137: 1172 | F137: 212
C138: 남대전고등학교(99999) | D138: 1 | E138: 35 | F138: 1
C139: 남대전등기소(20870) | D139: 4429 | E139: 1518 | F139: 270
C140: 남대전등기소(20880) | D140: 993 | E140: 2795 | F140: 120
C141: 남대전변전소(10340) | D141: 2134 | E141: 1127 | F141: 24
C142: 남대전변전소(10350) | D142: 619 | E142: 1408 | F142: 44
C143: 남대전종합물류단지(13780) | D143: 2276 | E143: 14 | F143: 94
C144: 남대전종합물류단지(13790) | D144: 20 | E144: 2342 | F144: 7
C145: 남부여성가족원(10480) | D145: 708 | E145: 274 | F145: 7
C146: 남선공원네거리(31260) | D146: 5589 | E146: 3608 | F146: 904
C147: 남선공원네거리(31270) | D147: 3509 | E147: 3565 | F147: 493
C148: 남선공원종합체육관(31240) | D148: 6292 | E148: 2871 | F148: 429
C149: 남선공원종합체육관(31320) | D149: 4081 | E149: 5655 | F149: 180
C150: 남송타운(62420) | D150: 149 | E150: 174 | F150: 0
C151: 낭월공영차고지(13820) | D151: 19 | E151: 201 | F151: 3
C152: 낭월공영차고지기점(99999) | D152: 173 | E152: 6 | F152: 19
C153: 낭월차고지시작지점(99999) | D153: 69 | E153: 8 | F153: 6
C154: 내동네거리(30230) | D154: 1801 | E154: 1042 | F154: 156
C155: 내동네거리(31650) | D155: 4850 | E155: 4869 | F155: 957
C156: 내동주민센터(31660) | D156: 698 | E156: 302 | F156: 27
C157: 내동중학교(30200) | D157: 3431 | E157: 7248 | F157: 1552
C158: 내동중학교(30210) | D158: 6649 | E158: 2737 | F158: 1629
C159: 내동초등학교(30280) | D159: 5360 | E159: 4001 | F159: 845
C160: 내동초등학교(30300) | D160: 6335 | E160: 5832 | F160: 1815
C161: 냉천골종점(12860) | D161: 28 | E161: 70 | F161: 0
C162: 노루벌(33790) | D162: 16 | E162: 118 | F162: 9
C163: 노루벌(33800) | D163: 61 | E163: 6 | F163: 2
C164: 노은3지구종점(45940) | D164: 12 | E164: 1324 | F164: 3
C165: 노은농수산물시장(42260) | D165: 1259 | E165: 2305 | F165: 320
C166: 노은농수산물시장(42270) | D166: 2235 | E166: 863 | F166: 475
C167: 노은농수산시장(42210) | D167: 547 | E167: 340 | F167: 40
C168: 노은농수산시장(42240) | D168: 129 | E168: 472 | F168: 9
C169: 노은도서관(45530) | D169: 446 | E169: 752 | F169: 41
C170: 노은도서관(45540) | D170: 617 | E170: 380 | F170: 103
C171: 노은동화훼단지(42280) | D171: 364 | E171: 94 | F171: 1
C172: 노은동화훼단지(42290) | D172: 1 | E172: 252 | F172: 0
C173: 노은역(42330) | D173: 51 | E173: 4993 | F173: 6
C174: 노은역(42360) | D174: 13486 | E174: 11876 | F174: 3577
C175: 노은휴먼시아4단지(45930) | D175: 3706 | E175: 3858 | F175: 78
C176: 노은휴먼시아4단지(46460) | D176: 4146 | E176: 1483 | F176: 38
C177: 노인종합복지관(73130) | D177: 293 | E177: 194 | F177: 3
C178: 노인종합복지관(73140) | D178: 119 | E178: 96 | F178: 4
C179: 녹원아파트(32260) | D179: 8552 | E179: 7967 | F179: 1136
C180: 농산물유통센터(22460) | D180: 304 | E180: 4577 | F180: 121
C181: 농산물유통센터(22470) | D181: 6629 | E181: 399 | F181: 722
C182: 누리아파트(32860) | D182: 11232 | E182: 5068 | F182: 980
C183: 누리아파트후문(32880) | D183: 4907 | E183: 2570 | F183: 453
C184: 뉴로스(44370) | D184: 514 | E184: 1861 | F184: 0
C185: 뉴로스(44390) | D185: 1615 | E185: 155 | F185: 16
C186: 느리울12단지(33580) | D186: 4215 | E186: 9302 | F186: 812
C187: 느리울12단지(33610) | D187: 13579 | E187: 3517 | F187: 1314
C188: 느리울13단지(33550) | D188: 8091 | E188: 1702 | F188: 68
C189: 느리울13단지(33570) | D189: 25 | E189: 3578 | F189: 1
C190: 느리울13단지(35260) | D190: 357 | E190: 2568 | F190: 16
C191: 느리울초등학교(35250) | D191: 2148 | E191: 337 | F191: 13
C192: 다솔아파트(42680) | D192: 5909 | E192: 13567 | F192: 1186
C193: 다온숲아파트(35210) | D193: 3274 | E193: 587 | F193: 40
C194: 다온숲아파트(35220) | D194: 615 | E194: 2076 | F194: 12
C195: 달수정(53010) | D195: 154 | E195: 159 | F195: 0
C196: 달전리(75430) | D196: 89 | E196: 94 | F196: 0
C197: 답적골(22940) | D197: 0 | E197: 149 | F197: 0
C198: 답적골(22950) | D198: 188 | E198: 4 | F198: 0
C199: 당골마을(62010) | D199: 60 | E199: 34 | F199: 0
C200: 당골마을(62200) | D200: 38 | E200: 135 | F200: 0
C201: 당아래(50630) | D201: 1967 | E201: 1971 | F201: 989
C202: 당아래(50640) | D202: 2856 | E202: 2033 | F202: 1245
C203: 대고오거리(20620) | D203: 846 | E203: 841 | F203: 208
... 2223 more rows

Sheet Sheet3 (hidden)
D5: 승차승객 | E5: 하차승객 | F5: 승하차인원
C6: DCC종점(45320) | D6: 2144 | E6: 209 | F6: =SUM(D6:E6) -> 2353
C7: e편한세상아파트(13430) | D7: 1911 | E7: 9427 | F7: 11338
C8: e편한세상아파트(13440) | D8: 11620 | E8: 1417 | F8: 13037
C9: e편한세상아파트(31220) | D9: 1254 | E9: 948 | F9: 2202
C10: e편한세상아파트(31230) | D10: 570 | E10: 949 | F10: 1519
C11: GS칼텍스저유소(33220) | D11: 78 | E11: 31 | F11: 109
C12: KAIST문지캠퍼스(44030) | D12: 1438 | E12: 275 | F12: 1713
C13: KT&G(53020) | D13: 3 | E13: 55 | F13: 58
C14: KT&G사택(53240) | D14: 90 | E14: 13 | F14: 103
C15: KT&G연구소(42970) | D15: 2945 | E15: 5085 | F15: 8030
C16: KT&G연구소(42971) | D16: 80 | E16: 250 | F16: 330
C17: KT북대전지사(43400) | D17: 607 | E17: 1502 | F17: 2109
C18: KT서대전지사입구(31390) | D18: 3800 | E18: 1854 | F18: 5654
C19: KT서대전지사입구(31400) | D19: 632 | E19: 1156 | F19: 1788
C20: KT서대전지사입구(31410) | D20: 1139 | E20: 1727 | F20: 2866
C21: KT인재개발원(31340) | D21: 4307 | E21: 2903 | F21: 7210
C22: KT인재개발원(31350) | D22: 3660 | E22: 3555 | F22: 7215
C23: k-water인재개발원(44120) | D23: 209 | E23: 82 | F23: 291
C24: LG생활건강기술연구원(43410) | D24: 3069 | E24: 1044 | F24: 4113
C25: LG화학기술연구원(44020) | D25: 274 | E25: 1296 | F25: 1570
C26: LH연구원(44130) | D26: 38 | E26: 232 | F26: 270
C27: LH연구원(44140) | D27: 1736 | E27: 483 | F27: 2219
C28: LH연구원(44150) | D28: 497 | E28: 1566 | F28: 2063
C29: MBC/TJB방송국(43320) | D29: 1478 | E29: 3295 | F29: 4773
C30: MBC/TJB방송국(43330) | D30: 3439 | E30: 1280 | F30: 4719
C31: SK뷰아파트(43130) | D31: 1741 | E31: 761 | F31: 2502
C32: SK브로드밴드(32220) | D32: 16449 | E32: 8834 | F32: 25283
C33: 가는골(12740) | D33: 23 | E33: 14 | F33: 37
C34: 가는골(12750) | D34: 5 | E34: 126 | F34: 131
C35: 가는골입구(14370) | D35: 6 | E35: 31 | F35: 37
C36: 가는골입구(14380) | D36: 51 | E36: 2 | F36: 53
C37: 가람아파트(32650) | D37: 26700 | E37: 23678 | F37: 50378
C38: 가목정마을(14000) | D38: 39 | E38: 283 | F38: 322
C39: 가목정마을(14010) | D39: 223 | E39: 41 | F39: 264
C40: 가수원교(30800) | D40: 65 | E40: 444 | F40: 509
C41: 가수원네거리(33200) | D41: 2117 | E41: 2469 | F41: 4586
C42: 가수원네거리(34930) | D42: 1524 | E42: 1156 | F42: 2680
C43: 가수원도서관(33020) | D43: 705 | E43: 569 | F43: 1274
C44: 가수원도서관(33030) | D44: 58 | E44: 300 | F44: 358
C45: 가수원동(33080) | D45: 43 | E45: 248 | F45: 291
C46: 가수원동(33090) | D46: 207 | E46: 108 | F46: 315
C47: 가수원시장(33120) | D47: 2942 | E47: 1345 | F47: 4287
C48: 가수원시장(33140) | D48: 103 | E48: 1804 | F48: 1907
C49: 가수원역(33180) | D49: 405 | E49: 2307 | F49: 2712
C50: 가수원역(33190) | D50: 3314 | E50: 550 | F50: 3864
C51: 가수원역(99999) | D51: 7 | E51: 0 | F51: 7
C52: 가수원육교.가수원시장(33040) | D52: 29145 | E52: 52373 | F52: 81518
C53: 가수원육교.가수원시장(33070) | D53: 37527 | E53: 13850 | F53: 51377
C54: 가수원중학교(33130) | D54: 21 | E54: 186 | F54: 207
C55: 가수원중학교(33150) | D55: 73 | E55: 37 | F55: 110
C56: 가수원파출소(33100) | D56: 2987 | E56: 7922 | F56: 10909
C57: 가수원파출소(34870) | D57: 13463 | E57: 2970 | F57: 16433
C58: 가양네거리(11540) | D58: 4158 | E58: 5453 | F58: 9611
C59: 가양네거리(11550) | D59: 15794 | E59: 9977 | F59: 25771
C60: 가양네거리(11580) | D60: 2721 | E60: 10183 | F60: 12904
C61: 가양도서관(11520) | D61: 7518 | E61: 9300 | F61: 16818
C62: 가양도서관(11530) | D62: 7827 | E62: 3662 | F62: 11489
C63: 가양동우체국(11570) | D63: 10431 | E63: 2149 | F63: 12580
C64: 가양비래공원(51620) | D64: 7274 | E64: 1877 | F64: 9151
C65: 가양비래공원(51640) | D65: 2821 | E65: 7246 | F65: 10067
C66: 가양비래공원네거리(53510) | D66: 207 | E66: 6 | F66: 213
C67: 가양비래공원네거리(53520) | D67: 2 | E67: 278 | F67: 280
C68: 가양중학교입구(51010) | D68: 989 | E68: 6695 | F68: 7684
C69: 가양초등학교(11500) | D69: 7742 | E69: 3770 | F69: 11512
C70: 가양초등학교(11510) | D70: 5065 | E70: 5836 | F70: =SUM(D70:E70) -> 10901
C71: 가오고등학교(14340) | D71: 2395 | E71: 749 | F71: 3144
C72: 가오고등학교(14350) | D72: 900 | E72: 2429 | F72: 3329
C73: 가오동(10290) | D73: 27 | E73: 15 | F73: 42
C74: 가오동(10300) | D74: 3403 | E74: 501 | F74: 3904
C75: 가오동(10310) | D75: 597 | E75: 2566 | F75: 3163
C76: 가오동(14360) | D76: 43 | E76: 467 | F76: 510
C77: 가오동네거리(10360) | D77: 3686 | E77: 1226 | F77: 4912
C78: 가오동네거리(10370) | D78: 1343 | E78: 2932 | F78: 4275
C79: 가오주공아파트(10320) | D79: 7210 | E79: 1347 | F79: 8557
C80: 가오주공아파트(10330) | D80: 1492 | E80: 5717 | F80: 7209
C81: 가장교(31530) | D81: 3135 | E81: 2135 | F81: 5270
C82: 가장교(31540) | D82: 2172 | E82: 2935 | F82: 5107
C83: 가장교오거리(34830) | D83: 944 | E83: 181 | F83: 1125
C84: 가장교오거리(34840) | D84: 289 | E84: 1154 | F84: 1443
C85: 가장네거리(31480) | D85: 4527 | E85: 2919 | F85: 7446
C86: 가장네거리(31500) | D86: 1374 | E86: 3570 | F86: 4944
C87: 가장제일장로교회(31470) | D87: 769 | E87: 724 | F87: 1493
C88: 가화리(5945) | D88: 1319 | E88: 0 | F88: 1319
C89: 가화리(62430) | D89: 4 | E89: 334 | F89: 338
C90: 갈마2동주민센터(31950) | D90: 8217 | E90: 8093 | F90: 16310
C91: 갈마네거리(31750) | D91: 16479 | E91: 8349 | F91: 24828
C92: 갈마네거리(31770) | D92: 13985 | E92: 19073 | F92: 33058
C93: 갈마네거리(31800) | D93: 5295 | E93: 1881 | F93: 7176
C94: 갈마도서관(31730) | D94: 3965 | E94: 5981 | F94: 9946
C95: 갈마삼거리(31830) | D95: 6534 | E95: 11473 | F95: 18007
C96: 갈마아파트2단지(31740) | D96: 13016 | E96: 4210 | F96: 17226
C97: 갈마아파트3단지(31880) | D97: 13451 | E97: 10991 | F97: 24442
C98: 갈마역(31920) | D98: 3854 | E98: 1911 | F98: 5765
C99: 갈마역(31940) | D99: 1502 | E99: 1258 | F99: 2760
C100: 갈마역(32870) | D100: 2402 | E100: 3689 | F100: 6091
C101: 갈마육교(31900) | D101: 15227 | E101: 10387 | F101: 25614
C102: 갈마육교(31910) | D102: 7717 | E102: 8136 | F102: 15853
C103: 갈마중학교입구(31760) | D103: 2988 | E103: 1918 | F103: 4906
C104: 갈마중학교입구(31790) | D104: 2060 | E104: 2017 | F104: 4077
C105: 갈마초등학교(31820) | D105: 2342 | E105: 1226 | F105: 3568
C106: 갈마초등학교(31860) | D106: 1061 | E106: 1733 | F106: 2794
C107: 갈전동(52600) | D107: 10 | E107: 69 | F107: 79
C108: 갈전동(52610) | D108: 122 | E108: 5 | F108: 127
C109: 감골(40650) | D109: 35 | E109: 1 | F109: 36
C110: 감골(40660) | D110: 1 | E110: 22 | F110: 23
C111: 감나무골입구(14440) | D111: 4 | E111: 10 | F111: 14
C112: 감나무골입구(14450) | D112: 1 | E112: 17 | F112: 18
C113: 갑동(42170) | D113: 745 | E113: 30 | F113: 775
C114: 갑동(42180) | D114: 18 | E114: 781 | F114: 799
C115: 갑천역(32700) | D115: 32 | E115: 267 | F115: 299
C116: 갑천역(32710) | D116: 486 | E116: 286 | F116: 772
C117: 강변아파트(34680) | D117: 93 | E117: 2003 | F117: 2096
C118: 개나리아파트(31050) | D118: 20984 | E118: 18547 | F118: 39531
C119: 갤러리아타임월드(32040) | D119: 18567 | E119: 10850 | F119: 29417
C120: 갤러리아타임월드(32050) | D120: 17501 | E120: 14353 | F120: 31854
C121: 갤러리아타임월드(32120) | D121: 56393 | E121: 38444 | F121: 94837
C122: 건양대병원(32990) | D122: 13441 | E122: 11128 | F122: 24569
C123: 건양대병원네거리(33560) | D123: 5269 | E123: 19640 | F123: 24909
C124: 건양대병원네거리(33590) | D124: 3969 | E124: 4725 | F124: 8694
C125: 건양대병원네거리(33620) | D125: 215 | E125: 3090 | F125: 3305
C126: 건양대병원네거리(33630) | D126: 31408 | E126: 12036 | F126: 43444
C127: 검천리(72440) | D127: 1 | E127: 44 | F127: 45
C128: 검천리(72450) | D128: 33 | E128: 0 | F128: 33
C129: 경남아파트(30370) | D129: 1048 | E129: 0 | F129: 1048
C130: 경남아파트(30400) | D130: 14 | E130: 1864 | F130: 1878
C131: 경남아파트(30450) | D131: 9527 | E131: 6352 | F131: 15879
C132: 계룡과선교(40980) | D132: 207 | E132: 62 | F132: 269
C133: 계룡과선교(40990) | D133: 14 | E133: 158 | F133: 172
C134: 계룡과선교(45980) | D134: 80 | E134: 5 | F134: =SUM(D134:E134) -> 85
C135: 계룡디지텍고입구(12340) | D135: 4562 | E135: 8852 | F135: 13414
C136: 계룡리슈빌아파트(46210) | D136: 2412 | E136: 2419 | F136: 4831
C137: 계룡시보건소(73050) | D137: 1909 | E137: 955 | F137: 2864
C138: 계룡시보건소(73100) | D138: 1362 | E138: 1762 | F138: 3124
C139: 계룡시선거관리위원회(73950) | D139: 140 | E139: 263 | F139: 403
C140: 계룡시선거관리위원회(73960) | D140: 234 | E140: 191 | F140: 425
C141: 계룡시청(73090) | D141: 127 | E141: 315 | F141: 442
C142: 계룡시청(73800) | D142: 310 | E142: 158 | F142: 468
C143: 계룡아파트(30020) | D143: 4292 | E143: 3074 | F143: 7366
C144: 계룡역(73460) | D144: 1392 | E144: 1033 | F144: 2425
C145: 계룡역(73820) | D145: 537 | E145: 191 | F145: 728
C146: 계산동(40490) | D146: 133 | E146: 406 | F146: 539
C147: 계산동(40500) | D147: 321 | E147: 95 | F147: 416
C148: 고도리(5648) | D148: 114 | E148: 3 | F148: 117
C149: 고도리(5649) | D149: 3 | E149: 141 | F149: 144
C150: 고릿골구름다리(34500) | D150: 11 | E150: 187 | F150: 198
C151: 고릿골구름다리(34510) | D151: 209 | E151: 8 | F151: 217
C152: 고산사입구(13620) | D152: 1050 | E152: 4382 | F152: 5432
C153: 고산사입구(13630) | D153: 6264 | E153: 661 | F153: 6925
C154: 곡남리종점(74460) | D154: 29 | E154: 495 | F154: 524
C155: 곡남리종점(74470) | D155: 504 | E155: 31 | F155: 535
C156: 곡남삼거리(74550) | D156: 32 | E156: 86 | F156: 118
C157: 곡남삼거리(74560) | D157: 49 | E157: 20 | F157: 69
C158: 공구백화점(50400) | D158: 1748 | E158: 506 | F158: 2254
C159: 공구백화점(50410) | D159: 450 | E159: 1630 | F159: 2080
C160: 공굴안(30380) | D160: 1155 | E160: 2708 | F160: 3863
C161: 공굴안(30390) | D161: 3281 | E161: 1971 | F161: 5252
C162: 공동관리아파트(43150) | D162: 4203 | E162: 1423 | F162: 5626
C163: 공동관리아파트(43180) | D163: 579 | E163: 1885 | F163: 2464
C164: 공작아파트(31190) | D164: 4835 | E164: 2553 | F164: 7388
C165: 공주마을(13880) | D165: 1 | E165: 455 | F165: 456
C166: 공주마을(13890) | D166: 702 | E166: 25 | F166: 727
C167: 과례마을(22160) | D167: 457 | E167: 1147 | F167: 1604
C168: 과례마을(22170) | D168: 1458 | E168: 781 | F168: 2239
C169: 과학기술연합대학원(UST)(43090) | D169: 1105 | E169: 2358 | F169: 3463
C170: 관저2동행정복지센터(33460) | D170: 6142 | E170: 2810 | F170: 8952
C171: 관저네거리(33440) | D171: 152 | E171: 689 | F171: 841
C172: 관저네거리(33470) | D172: 7766 | E172: 2454 | F172: 10220
C173: 관저네거리(35740) | D173: 3 | E173: 128 | F173: 131
C174: 관저더샵1단지(35570) | D174: 268 | E174: 967 | F174: 1235
C175: 관저더샵2단지(35560) | D175: 1607 | E175: 238 | F175: 1845
C176: 관저동예미지아파트(35520) | D176: 1505 | E176: 273 | F176: 1778
C177: 관저동예미지아파트(35530) | D177: 325 | E177: 1206 | F177: 1531
C178: 관저중학교(33600) | D178: 11457 | E178: 7914 | F178: 19371
C179: 관저지하차도(33480) | D179: 748 | E179: 2296 | F179: 3044
C180: 관저체육공원(35270) | D180: 275 | E180: 659 | F180: 934
C181: 관저체육공원(35780) | D181: 25 | E181: 167 | F181: 192
C182: 관저체육공원(35790) | D182: 295 | E182: 54 | F182: 349
C183: 관평중학교(44550) | D183: 23074 | E183: 17241 | F183: 40315
C184: 관평중학교(44560) | D184: 24720 | E184: 25686 | F184: 50406
C185: 괴곡동.고리골(34530) | D185: 9 | E185: 70 | F185: 79
C186: 괴곡동.고리골(34540) | D186: 2 | E186: 4 | F186: 6
C187: 괴정네거리(31360) | D187: 5402 | E187: 4440 | F187: 9842
C188: 괴정네거리(31670) | D188: 6037 | E188: 4587 | F188: 10624
C189: 괴정네거리(31680) | D189: 644 | E189: 907 | F189: 1551
C190: 괴정네거리(31690) | D190: 461 | E190: 599 | F190: 1060
C191: 괴정동주민센터(31370) | D191: 2552 | E191: 3370 | F191: 5922
C192: 괴정동주민센터(31380) | D192: 4039 | E192: 2022 | F192: 6061
C193: 교도소(40350) | D193: 668 | E193: 785 | F193: 1453
C194: 교도소입구(40240) | D194: 99 | E194: 284 | F194: 383
C195: 교도소입구(40250) | D195: 82 | E195: 205 | F195: 287
C196: 교촌3통(40300) | D196: 77 | E196: 1234 | F196: 1311
C197: 교촌3통(40310) | D197: 243 | E197: 45 | F197: 288
C198: 교촌동(82110) | D198: 16 | E198: 9 | F198: =SUM(D198:E198) -> 25
C199: 교촌초등학교(40040) | D199: 1614 | E199: 741 | F199: 2355
C200: 교촌초등학교(40050) | D200: 967 | E200: 1945 | F200: 2912
C201: 구농도원(30660) | D201: 4737 | E201: 4374 | F201: 9111
C202: 구농도원(30670) | D202: 5662 | E202: 4624 | F202: 10286
C203: 구농도원네거리(30680) | D203: 6141 | E203: 6229 | F203: 12370
C204: 구농도원네거리(30690) | D204: 6838 | E204: 3819 | F204: 10657
... 2439 more rows

Sheet Sheet4 (hidden)
D6: DCC종점(45320) | E6: 2353
D7: e편한세상아파트(13430) | E7: 11338
D8: e편한세상아파트(13440) | E8: 13037
D9: e편한세상아파트(31220) | E9: 2202
D10: e편한세상아파트(31230) | E10: 1519
D11: GS칼텍스저유소(33220) | E11: 109
D12: KAIST문지캠퍼스(44030) | E12: 1713
D13: KT&G(53020) | E13: 58
D14: KT&G사택(53240) | E14: 103
D15: KT&G연구소(42970) | E15: 8030
D16: KT&G연구소(42971) | E16: 330
D17: KT북대전지사(43400) | E17: 2109
D18: KT서대전지사입구(31390) | E18: 5654
D19: KT서대전지사입구(31400) | E19: 1788
D20: KT서대전지사입구(31410) | E20: 2866
D21: KT인재개발원(31340) | E21: 7210
D22: KT인재개발원(31350) | E22: 7215
D23: k-water인재개발원(44120) | E23: 291
D24: LG생활건강기술연구원(43410) | E24: 4113
D25: LG화학기술연구원(44020) | E25: 1570
D26: LH연구원(44130) | E26: 270
D27: LH연구원(44140) | E27: 2219
D28: LH연구원(44150) | E28: 2063
D29: MBC/TJB방송국(43320) | E29: 4773
D30: MBC/TJB방송국(43330) | E30: 4719
D31: SK뷰아파트(43130) | E31: 2502
D32: SK브로드밴드(32220) | E32: 25283
D33: 가는골(12740) | E33: 37
D34: 가는골(12750) | E34: 131
D35: 가는골입구(14370) | E35: 37
D36: 가는골입구(14380) | E36: 53
D37: 가람아파트(32650) | E37: 50378
D38: 가목정마을(14000) | E38: 322
D39: 가목정마을(14010) | E39: 264
D40: 가수원교(30800) | E40: 509
D41: 가수원네거리(33200) | E41: 4586
D42: 가수원네거리(34930) | E42: 2680
D43: 가수원도서관(33020) | E43: 1274
D44: 가수원도서관(33030) | E44: 358
D45: 가수원동(33080) | E45: 291
D46: 가수원동(33090) | E46: 315
D47: 가수원시장(33120) | E47: 4287
D48: 가수원시장(33140) | E48: 1907
D49: 가수원역(33180) | E49: 2712
D50: 가수원역(33190) | E50: 3864
D51: 가수원역(99999) | E51: 7
D52: 가수원육교.가수원시장(33040) | E52: 81518
D53: 가수원육교.가수원시장(33070) | E53: 51377
D54: 가수원중학교(33130) | E54: 207
D55: 가수원중학교(33150) | E55: 110
D56: 가수원파출소(33100) | E56: 10909
D57: 가수원파출소(34870) | E57: 16433
D58: 가양네거리(11540) | E58: 9611
D59: 가양네거리(11550) | E59: 25771
D60: 가양네거리(11580) | E60: 12904
D61: 가양도서관(11520) | E61: 16818
D62: 가양도서관(11530) | E62: 11489
D63: 가양동우체국(11570) | E63: 12580
D64: 가양비래공원(51620) | E64: 9151
D65: 가양비래공원(51640) | E65: 10067
D66: 가양비래공원네거리(53510) | E66: 213
D67: 가양비래공원네거리(53520) | E67: 280
D68: 가양중학교입구(51010) | E68: 7684
D69: 가양초등학교(11500) | E69: 11512
D70: 가양초등학교(11510) | E70: 10901
D71: 가오고등학교(14340) | E71: 3144
D72: 가오고등학교(14350) | E72: 3329
D73: 가오동(10290) | E73: 42
D74: 가오동(10300) | E74: 3904
D75: 가오동(10310) | E75: 3163
D76: 가오동(14360) | E76: 510
D77: 가오동네거리(10360) | E77: 4912
D78: 가오동네거리(10370) | E78: 4275
D79: 가오주공아파트(10320) | E79: 8557
D80: 가오주공아파트(10330) | E80: 7209
D81: 가장교(31530) | E81: 5270
D82: 가장교(31540) | E82: 5107
D83: 가장교오거리(34830) | E83: 1125
D84: 가장교오거리(34840) | E84: 1443
D85: 가장네거리(31480) | E85: 7446
D86: 가장네거리(31500) | E86: 4944
D87: 가장제일장로교회(31470) | E87: 1493
D88: 가화리(5945) | E88: 1319
D89: 가화리(62430) | E89: 338
D90: 갈마2동주민센터(31950) | E90: 16310
D91: 갈마네거리(31750) | E91: 24828
D92: 갈마네거리(31770) | E92: 33058
D93: 갈마네거리(31800) | E93: 7176
D94: 갈마도서관(31730) | E94: 9946
D95: 갈마삼거리(31830) | E95: 18007
D96: 갈마아파트2단지(31740) | E96: 17226
D97: 갈마아파트3단지(31880) | E97: 24442
D98: 갈마역(31920) | E98: 5765
D99: 갈마역(31940) | E99: 2760
D100: 갈마역(32870) | E100: 6091
D101: 갈마육교(31900) | E101: 25614
D102: 갈마육교(31910) | E102: 15853
D103: 갈마중학교입구(31760) | E103: 4906
D104: 갈마중학교입구(31790) | E104: 4077
D105: 갈마초등학교(31820) | E105: 3568
D106: 갈마초등학교(31860) | E106: 2794
D107: 갈전동(52600) | E107: 79
D108: 갈전동(52610) | E108: 127
D109: 감골(40650) | E109: 36
D110: 감골(40660) | E110: 23
D111: 감나무골입구(14440) | E111: 14
D112: 감나무골입구(14450) | E112: 18
D113: 갑동(42170) | E113: 775
D114: 갑동(42180) | E114: 799
D115: 갑천역(32700) | E115: 299
D116: 갑천역(32710) | E116: 772
D117: 강변아파트(34680) | E117: 2096
D118: 개나리아파트(31050) | E118: 39531
D119: 갤러리아타임월드(32040) | E119: 29417
D120: 갤러리아타임월드(32050) | E120: 31854
D121: 갤러리아타임월드(32120) | E121: 94837
D122: 건양대병원(32990) | E122: 24569
D123: 건양대병원네거리(33560) | E123: 24909
D124: 건양대병원네거리(33590) | E124: 8694
D125: 건양대병원네거리(33620) | E125: 3305
D126: 건양대병원네거리(33630) | E126: 43444
D127: 검천리(72440) | E127: 45
D128: 검천리(72450) | E128: 33
D129: 경남아파트(30370) | E129: 1048
D130: 경남아파트(30400) | E130: 1878
D131: 경남아파트(30450) | E131: 15879
D132: 계룡과선교(40980) | E132: 269
D133: 계룡과선교(40990) | E133: 172
D134: 계룡과선교(45980) | E134: 85
D135: 계룡디지텍고입구(12340) | E135: 13414
D136: 계룡리슈빌아파트(46210) | E136: 4831
D137: 계룡시보건소(73050) | E137: 2864
D138: 계룡시보건소(73100) | E138: 3124
D139: 계룡시선거관리위원회(73950) | E139: 403
D140: 계룡시선거관리위원회(73960) | E140: 425
D141: 계룡시청(73090) | E141: 442
D142: 계룡시청(73800) | E142: 468
D143: 계룡아파트(30020) | E143: 7366
D144: 계룡역(73460) | E144: 2425
D145: 계룡역(73820) | E145: 728
D146: 계산동(40490) | E146: 539
D147: 계산동(40500) | E147: 416
D148: 고도리(5648) | E148: 117
D149: 고도리(5649) | E149: 144
D150: 고릿골구름다리(34500) | E150: 198
D151: 고릿골구름다리(34510) | E151: 217
D152: 고산사입구(13620) | E152: 5432
D153: 고산사입구(13630) | E153: 6925
D154: 곡남리종점(74460) | E154: 524
D155: 곡남리종점(74470) | E155: 535
D156: 곡남삼거리(74550) | E156: 118
D157: 곡남삼거리(74560) | E157: 69
D158: 공구백화점(50400) | E158: 2254
D159: 공구백화점(50410) | E159: 2080
D160: 공굴안(30380) | E160: 3863
D161: 공굴안(30390) | E161: 5252
D162: 공동관리아파트(43150) | E162: 5626
D163: 공동관리아파트(43180) | E163: 2464
D164: 공작아파트(31190) | E164: 7388
D165: 공주마을(13880) | E165: 456
D166: 공주마을(13890) | E166: 727
D167: 과례마을(22160) | E167: 1604
D168: 과례마을(22170) | E168: 2239
D169: 과학기술연합대학원(UST)(43090) | E169: 3463
D170: 관저2동행정복지센터(33460) | E170: 8952
D171: 관저네거리(33440) | E171: 841
D172: 관저네거리(33470) | E172: 10220
D173: 관저네거리(35740) | E173: 131
D174: 관저더샵1단지(35570) | E174: 1235
D175: 관저더샵2단지(35560) | E175: 1845
D176: 관저동예미지아파트(35520) | E176: 1778
D177: 관저동예미지아파트(35530) | E177: 1531
D178: 관저중학교(33600) | E178: 19371
D179: 관저지하차도(33480) | E179: 3044
D180: 관저체육공원(35270) | E180: 934
D181: 관저체육공원(35780) | E181: 192
D182: 관저체육공원(35790) | E182: 349
D183: 관평중학교(44550) | E183: 40315
D184: 관평중학교(44560) | E184: 50406
D185: 괴곡동.고리골(34530) | E185: 79
D186: 괴곡동.고리골(34540) | E186: 6
D187: 괴정네거리(31360) | E187: 9842
D188: 괴정네거리(31670) | E188: 10624
D189: 괴정네거리(31680) | E189: 1551
D190: 괴정네거리(31690) | E190: 1060
D191: 괴정동주민센터(31370) | E191: 5922
D192: 괴정동주민센터(31380) | E192: 6061
D193: 교도소(40350) | E193: 1453
D194: 교도소입구(40240) | E194: 383
D195: 교도소입구(40250) | E195: 287
D196: 교촌3통(40300) | E196: 1311
D197: 교촌3통(40310) | E197: 288
D198: 교촌동(82110) | E198: 25
D199: 교촌초등학교(40040) | E199: 2355
D200: 교촌초등학교(40050) | E200: 2912
D201: 구농도원(30660) | E201: 9111
D202: 구농도원(30670) | E202: 10286
D203: 구농도원네거리(30680) | E203: 12370
D204: 구농도원네거리(30690) | E204: 10657
D205: 구도동(13800) | E205: 606
... 2438 more rows

Sheet 분양대상목록(1,432개소)
A1: 붙임1 분양대상 승강장 목록
A2: 분양대상 승강장 목록(신청서)
B6: 회사명 :
A8: 연번 | B8: 고유번호 | C8: 명칭 | D8: 승강장유형 | E8: 분류 | F8: 구별 | G8: 택(O) | H8: 비고
A9: 1 | B9: 10020 | C9: 원동네거리 | D9: 구형 | E9: A등급 | F9: 동구
A10: 2 | B10: 10030 | C10: 중앙시장 | D10: 장대형 | E10: A등급 | F10: 동구
A11: 3 | B11: 10070 | C11: 원동네거리 | D11: 표준형 | E11: A등급 | F11: 동구
A12: 4 | B12: 10090 | C12: 신인동주민센터 | D12: 표준형 | E12: A등급 | F12: 동구
A13: 5 | B13: 10150 | C13: 동부경찰서 | D13: 표준형 | E13: A등급 | F13: 동구
A14: 6 | B14: 10360 | C14: 가오동네거리 | D14: 표준형 | E14: A등급 | F14: 동구
A15: 7 | B15: 10380 | C15: 동구청 | D15: 표준형 | E15: A등급 | F15: 동구
A16: 8 | B16: 10390 | C16: 동구청 | D16: 표준형 | E16: A등급 | F16: 동구
A17: 9 | B17: 10640 | C17: 신흥역 | D17: 구형 | E17: A등급 | F17: 동구
A18: 10 | B18: 10680 | C18: 판암역네거리 | D18: 구형 | E18: A등급 | F18: 동구
A19: 11 | B19: 10690 | C19: 판암역네거리 | D19: 표준형 | E19: A등급 | F19: 동구
A20: 12 | B20: 10700 | C20: 판암2동주민센터 | D20: 표준형 | E20: A등급 | F20: 동구
A21: 13 | B21: 10720 | C21: 판암주공4단지 | D21: 구형 | E21: A등급 | F21: 동구
A22: 14 | B22: 10750 | C22: 판암주공5단지 | D22: 표준형 | E22: A등급 | F22: 동구
A23: 15 | B23: 10920 | C23: 용운주공2단지 | D23: 표준형 | E23: A등급 | F23: 동구
A24: 16 | B24: 10940 | C24: 용운종합사회복지관 | D24: 표준형 | E24: A등급 | F24: 동구
A25: 17 | B25: 11020 | C25: 용운동주민센터 | D25: 구형 | E25: A등급 | F25: 동구
A26: 18 | B26: 11100 | C26: 대전대학교 | D26: 구형 | E26: A등급 | F26: 동구
A27: 19 | B27: 11170 | C27: 대동역2번출구 | D27: 표준형 | E27: A등급 | F27: 동구
A28: 20 | B28: 11180 | C28: 대동역3번출구 | D28: 표준형 | E28: A등급 | F28: 동구
A29: 21 | B29: 11210 | C29: 대동역7번출구 | D29: 표준형 | E29: A등급 | F29: 동구
A30: 22 | B30: 11300 | C30: 우송대삼거리 | D30: 표준형 | E30: A등급 | F30: 동구
A31: 23 | B31: 11310 | C31: 우송대학교서캠퍼스 | D31: 구형 | E31: A등급 | F31: 동구
A32: 24 | B32: 11340 | C32: 우송어학센터 | D32: 표준형 | E32: A등급 | F32: 동구
A33: 25 | B33: 11410 | C33: 대전역동광장 | D33: 표준형 | E33: A등급 | F33: 동구
A34: 26 | B34: 11520 | C34: 가양도서관 | D34: 구형 | E34: A등급 | F34: 동구
A35: 27 | B35: 11550 | C35: 가양네거리 | D35: 구형 | E35: A등급 | F35: 동구
A36: 28 | B36: 11630 | C36: 대전보건대학 | D36: 표준형 | E36: A등급 | F36: 동구
A37: 29 | B37: 11640 | C37: 한국폴리텍대학 | D37: 표준형 | E37: A등급 | F37: 동구
A38: 30 | B38: 11650 | C38: 한국폴리텍대학 | D38: 표준형 | E38: A등급 | F38: 동구
A39: 31 | B39: 11690 | C39: 명석고등학교 | D39: 표준형 | E39: A등급 | F39: 동구
A40: 32 | B40: 11730 | C40: 용전네거리 | D40: 표준형 | E40: A등급 | F40: 동구
A41: 33 | B41: 11790 | C41: 용전초등학교입구 | D41: 표준형 | E41: A등급 | F41: 동구
A42: 34 | B42: 11810 | C42: 한국전력공사 | D42: 구형 | E42: A등급 | F42: 동구
A43: 35 | B43: 11820 | C43: 한국전력공사 | D43: 구형 | E43: A등급 | F43: 동구
A44: 36 | B44: 11950 | C44: 효촌마을아파트 | D44: 구형 | E44: A등급 | F44: 동구
A45: 37 | B45: 11980 | C45: 성남네거리 | D45: 표준형 | E45: A등급 | F45: 동구
A46: 38 | B46: 12140 | C46: 홍도지하차도 | D46: 구형 | E46: A등급 | F46: 동구
A47: 39 | B47: 12190 | C47: 현암교 | D47: 구형 | E47: A등급 | F47: 동구
A48: 40 | B48: 12310 | C48: 삼성초등학교 | D48: 표준형 | E48: A등급 | F48: 동구
A49: 41 | B49: 12380 | C49: 대전역/하나은행 | D49: 표준형 | E49: A등급 | F49: 동구
A50: 42 | B50: 12390 | C50: 대전역 | D50: 표준형 | E50: A등급 | F50: 동구
A51: 43 | B51: 12400 | C51: 대전역 | D51: 장대형 | E51: A등급 | F51: 동구
A52: 44 | B52: 12420 | C52: 목척교 | D52: 표준형 | E52: A등급 | F52: 동구
A53: 45 | B53: 20010 | C53: 중앙로역8번출구 | D53: 표준형 | E53: A등급 | F53: 중구
A54: 46 | B54: 20060 | C54: 으능정이거리 | D54: 표준형 | E54: A등급 | F54: 중구
A55: 47 | B55: 20090 | C55: 중촌네거리 | D55: 표준형 | E55: A등급 | F55: 중구
A56: 48 | B56: 20400 | C56: 한사랑아파트 | D56: 구형 | E56: A등급 | F56: 중구
A57: 49 | B57: 20410 | C57: 목동네거리 | D57: 구형 | E57: A등급 | F57: 중구
A58: 50 | B58: 20510 | C58: 중앙중고등학교 | D58: 표준형 | E58: A등급 | F58: 중구
A59: 51 | B59: 20520 | C59: 중촌동주민센터 | D59: 구형 | E59: A등급 | F59: 중구
A60: 52 | B60: 20550 | C60: 성모병원 | D60: 표준형 | E60: A등급 | F60: 중구
A61: 53 | B61: 20570 | C61: 성모병원 | D61: 구형 | E61: A등급 | F61: 중구
A62: 54 | B62: 20600 | C62: 중구청 | D62: 구형 | E62: A등급 | F62: 중구
A63: 55 | B63: 20610 | C63: 성모오거리 | D63: 표준형 | E63: A등급 | F63: 중구
A64: 56 | B64: 20750 | C64: 대흥네거리 | D64: 구형 | E64: A등급 | F64: 중구 | H64: 우측 광고면 크기 협소
A65: 57 | B65: 20770 | C65: 대흥네거리 | D65: 표준형 | E65: A등급 | F65: 중구
A66: 58 | B66: 20780 | C66: 대흥동성당 | D66: 표준형 | E66: A등급 | F66: 중구
A67: 59 | B67: 20790 | C67: 오토바이거리 | D67: 표준형 | E67: A등급 | F67: 중구
A68: 60 | B68: 20840 | C68: 부사오거리 | D68: 표준형 | E68: A등급 | F68: 중구
A69: 61 | B69: 20850 | C69: 문창시장 | D69: 구형 | E69: A등급 | F69: 중구
A70: 62 | B70: 20890 | C70: 석교동행정복지센터 | D70: 표준형 | E70: A등급 | F70: 중구
A71: 63 | B71: 20900 | C71: 석교동행정복지센터 | D71: 구형 | E71: A등급 | F71: 중구
A72: 64 | B72: 21100 | C72: 한밭종합운동장 | D72: 표준형 | E72: A등급 | F72: 중구
A73: 65 | B73: 21110 | C73: 부사오거리 | D73: 구형 | E73: A등급 | F73: 중구
A74: 66 | B74: 21120 | C74: 부사오거리 | D74: 장대형 | E74: A등급 | F74: 중구
A75: 67 | B75: 21180 | C75: 오룡역7번출구 | D75: 구형 | E75: A등급 | F75: 중구
A76: 68 | B76: 21240 | C76: 대전충남병무청 | D76: 구형 | E76: A등급 | F76: 중구
A77: 69 | B77: 21290 | C77: 오룡역2번출구 | D77: 표준형 | E77: A등급 | F77: 중구
A78: 70 | B78: 21340 | C78: 서대전역 | D78: 표준형 | E78: A등급 | F78: 중구
A79: 71 | B79: 21410 | C79: 서대전네거리역3번출구 | D79: 장대형 | E79: A등급 | F79: 중구
A80: 72 | B80: 21420 | C80: 버드내아파트 | D80: 구형 | E80: A등급 | F80: 중구
A81: 73 | B81: 21430 | C81: 삼부/새롬아파트 | D81: 표준형 | E81: A등급 | F81: 중구
A82: 74 | B82: 21470 | C82: 태평오거리 | D82: 구형 | E82: A등급 | F82: 중구
A83: 75 | B83: 21530 | C83: 태평시장 | D83: 표준형 | E83: A등급 | F83: 중구
A84: 76 | B84: 21580 | C84: 태평1동주민센터 | D84: 표준형 | E84: A등급 | F84: 중구
A85: 77 | B85: 21680 | C85: 버드내아파트 | D85: 표준형 | E85: A등급 | F85: 중구
A86: 78 | B86: 21720 | C86: 버드내네거리 | D86: 구형 | E86: A등급 | F86: 중구
A87: 79 | B87: 21770 | C87: 유천시장 | D87: 표준형 | E87: A등급 | F87: 중구
A88: 80 | B88: 21840 | C88: 서대전육교 | D88: 구형 | E88: A등급 | F88: 중구
A89: 81 | B89: 21990 | C89: 동산중고등학교 | D89: 구형 | E89: A등급 | F89: 중구
A90: 82 | B90: 22000 | C90: 동산중고등학교 | D90: 구형 | E90: A등급 | F90: 중구
A91: 83 | B91: 22020 | C91: 문화동삼익아파트 | D91: 표준형 | E91: A등급 | F91: 중구
A92: 84 | B92: 22040 | C92: 서대전역네거리 | D92: 구형 | E92: A등급 | F92: 중구
A93: 85 | B93: 22070 | C93: 센트럴파크1단지 | D93: 표준형 | E93: A등급 | F93: 중구
A94: 86 | B94: 22100 | C94: 한국산업인력공단 | D94: 표준형 | E94: A등급 | F94: 중구
A95: 87 | B95: 22110 | C95: 한밭도서관 | D95: 구형 | E95: A등급 | F95: 중구 | H95: 우측 광고면 크기 협소
A96: 88 | B96: 22140 | C96: 센트럴파크2단지 | D96: 구형 | E96: A등급 | F96: 중구
A97: 89 | B97: 22150 | C97: 서대전네거리역2번출구 | D97: 장대형 | E97: A등급 | F97: 중구
A98: 90 | B98: 22250 | C98: 대전충남병무청 | D98: 장대형 | E98: A등급 | F98: 중구
A99: 91 | B99: 22290 | C99: 산성네거리 | D99: 구형 | E99: A등급 | F99: 중구
A100: 92 | B100: 22310 | C100: 산성시장 | D100: 표준형 | E100: A등급 | F100: 중구
A101: 93 | B101: 22430 | C101: 산성우성아파트 | D101: 표준형 | E101: A등급 | F101: 중구
A102: 94 | B102: 23180 | C102: 충남대학병원동문 | D102: 표준형 | E102: A등급 | F102: 중구
A103: 95 | B103: 23210 | C103: 버드내아파트 | D103: 표준형 | E103: A등급 | F103: 중구
A104: 96 | B104: 23220 | C104: 파라곤아파트 | D104: 표준형 | E104: A등급 | F104: 중구
A105: 97 | B105: 23260 | C105: 보문오거리 | D105: 표준형 | E105: A등급 | F105: 중구
A106: 98 | B106: 23370 | C106: 중구청역 | D106: 표준형 | E106: A등급 | F106: 중구
A107: 99 | B107: 30250 | C107: 향우네거리 | D107: 표준형 | E107: A등급 | F107: 서구
A108: 100 | B108: 30260 | C108: 향우네거리 | D108: 구형 | E108: A등급 | F108: 서구
A109: 101 | B109: 30290 | C109: 변동네거리 | D109: 구형 | E109: A등급 | F109: 서구
A110: 102 | B110: 30420 | C110: 대아아파트 | D110: 구형 | E110: A등급 | F110: 서구
A111: 103 | B111: 30430 | C111: 배재대학교 | D111: 표준형 | E111: A등급 | F111: 서구
A112: 104 | B112: 30450 | C112: 경남아파트 | D112: 구형 | E112: A등급 | F112: 서구
A113: 105 | B113: 30490 | C113: 서부소방서 | D113: 구형 | E113: A등급 | F113: 서구
A114: 106 | B114: 30640 | C114: 도마삼거리 | D114: 장대형 | E114: A등급 | F114: 서구
A115: 107 | B115: 30650 | C115: 도마삼거리 | D115: 표준형 | E115: A등급 | F115: 서구
A116: 108 | B116: 30700 | C116: 도마1동행정복지센터 | D116: 구형 | E116: A등급 | F116: 서구
A117: 109 | B117: 30710 | C117: 도마1동행정복지센터 | D117: 장대형 | E117: A등급 | F117: 서구
A118: 110 | B118: 30720 | C118: 도마네거리 | D118: 표준형 | E118: A등급 | F118: 서구
A119: 111 | B119: 30730 | C119: 도마네거리 | D119: 장대형 | E119: A등급 | F119: 서구
A120: 112 | B120: 30760 | C120: 도마시장 | D120: 표준형 | E120: A등급 | F120: 서구
A121: 113 | B121: 30810 | C121: 정림삼거리 | D121: 구형 | E121: A등급 | F121: 서구
A122: 114 | B122: 30870 | C122: 정림동 | D122: 구형 | E122: A등급 | F122: 서구
A123: 115 | B123: 30910 | C123: 서부소방서 | D123: 구형 | E123: A등급 | F123: 서구
A124: 116 | B124: 30920 | C124: 대전산업정보고 | D124: 표준형 | E124: A등급 | F124: 서구
A125: 117 | B125: 30950 | C125: 용문역3번출구 | D125: 구형 | E125: A등급 | F125: 서구
A126: 118 | B126: 30990 | C126: 용문역7번출구 | D126: 구형 | E126: A등급 | F126: 서구
A127: 119 | B127: 31020 | C127: 유승기업사 | D127: 구형 | E127: A등급 | F127: 서구
A128: 120 | B128: 31040 | C128: 둔산초등학교 | D128: 구형 | E128: A등급 | F128: 서구
A129: 121 | B129: 31050 | C129: 개나리아파트 | D129: 구형 | E129: A등급 | F129: 서구
A130: 122 | B130: 31080 | C130: 탄방역종점 | D130: 표준형 | E130: A등급 | F130: 서구
A131: 123 | B131: 31090 | C131: 탄방역.대전고용센터 | D131: 표준형 | E131: A등급 | F131: 서구
A132: 124 | B132: 31120 | C132: 서부농협본점 | D132: 구형 | E132: A등급 | F132: 서구 | H132: 승강장 2개 중 파나소유 승강장 제외
A133: 125 | B133: 31170 | C133: 한가람아파트 | D133: 구형 | E133: A등급 | F133: 서구
A134: 126 | B134: 31200 | C134: 둔산전자타운 | D134: 구형 | E134: A등급 | F134: 서구
A135: 127 | B135: 31210 | C135: 탄방동주민센터 | D135: 구형 | E135: A등급 | F135: 서구
A136: 128 | B136: 31240 | C136: 남선공원종합체육관 | D136: 구형 | E136: A등급 | F136: 서구
A137: 129 | B137: 31290 | C137: 국화아파트 | D137: 구형 | E137: A등급 | F137: 서구
A138: 130 | B138: 31300 | C138: 청솔아파트 | D138: 구형 | E138: A등급 | F138: 서구
A139: 131 | B139: 31310 | C139: 청솔아파트 | D139: 구형 | E139: A등급 | F139: 서구
A140: 132 | B140: 31340 | C140: KT인재개발원 | D140: 구형 | E140: A등급 | F140: 서구
A141: 133 | B141: 31350 | C141: KT인재개발원 | D141: 표준형 | E141: A등급 | F141: 서구
A142: 134 | B142: 31420 | C142: 탄방네거리 | D142: 표준형 | E142: A등급 | F142: 서구
A143: 135 | B143: 31450 | C143: 롯데백화점 | D143: 장대형 | E143: A등급 | F143: 서구
A144: 136 | B144: 31490 | C144: 래미안아파트1단지 | D144: 구형 | E144: A등급 | F144: 서구
A145: 137 | B145: 31510 | C145: 래미안아파트1단지 | D145: 구형 | E145: A등급 | F145: 서구
A146: 138 | B146: 31550 | C146: 래미안아파트2단지 | D146: 구형 | E146: A등급 | F146: 서구
A147: 139 | B147: 31570 | C147: 롯데아파트 | D147: 구형 | E147: A등급 | F147: 서구
A148: 140 | B148: 31590 | C148: 코오롱아파트 | D148: 구형 | E148: A등급 | F148: 서구
A149: 141 | B149: 31650 | C149: 내동네거리 | D149: 구형 | E149: A등급 | F149: 서구
A150: 142 | B150: 31700 | C150: 한민시장 | D150: 구형 | E150: A등급 | F150: 서구
A151: 143 | B151: 31710 | C151: 한민시장 | D151: 구형 | E151: A등급 | F151: 서구
A152: 144 | B152: 31740 | C152: 갈마아파트2단지 | D152: 표준형 | E152: A등급 | F152: 서구
A153: 145 | B153: 31750 | C153: 갈마네거리 | D153: 구형 | E153: A등급 | F153: 서구
A154: 146 | B154: 31770 | C154: 갈마네거리 | D154: 표준형 | E154: A등급 | F154: 서구
A155: 147 | B155: 31780 | C155: 상수도사업본부 | D155: 표준형 | E155: A등급 | F155: 서구
A156: 148 | B156: 31830 | C156: 갈마삼거리 | D156: 표준형 | E156: A등급 | F156: 서구
A157: 149 | B157: 31870 | C157: 둔산소방서 | D157: 구형 | E157: A등급 | F157: 서구 | H157: 우측 광고면 크기 협소
A158: 150 | B158: 31880 | C158: 갈마아파트3단지 | D158: 구형 | E158: A등급 | F158: 서구
A159: 151 | B159: 31900 | C159: 갈마육교 | D159: 표준형 | E159: A등급 | F159: 서구
A160: 152 | B160: 31910 | C160: 갈마육교 | D160: 구형 | E160: A등급 | F160: 서구
A161: 153 | B161: 31950 | C161: 갈마2동주민센터/충청투데이 | D161: 구형 | E161: A등급 | F161: 서구
A162: 154 | B162: 31960 | C162: 큰마을아파트 | D162: 구형 | E162: A등급 | F162: 서구
A163: 155 | B163: 31970 | C163: 큰마을아파트 | D163: 표준형 | E163: A등급 | F163: 서구
A164: 156 | B164: 32000 | C164: 향촌아파트 | D164: 구형 | E164: A등급 | F164: 서구
A165: 157 | B165: 32030 | C165: 큰마을네거리 | D165: 구형 | E165: A등급 | F165: 서구
A166: 158 | B166: 32100 | C166: 대전상공회의소 | D166: 구형 | E166: A등급 | F166: 서구
A167: 159 | B167: 32130 | C167: 이마트 | D167: 장대형 | E167: A등급 | F167: 서구
A168: 160 | B168: 32160 | C168: 둔산경찰서 | D168: 장대형 | E168: A등급 | F168: 서구
A169: 161 | B169: 32190 | C169: 아이빌딩 | D169: 구형 | E169: A등급 | F169: 서구
A170: 162 | B170: 32220 | C170: SK브로드밴드 | D170: 구형 | E170: A등급 | F170: 서구
A171: 163 | B171: 32270 | C171: 정부청사역 | D171: 표준형 | E171: A등급 | F171: 서구 | H171: 승강장 2개 중 파나소유 승강장 제외
A172: 164 | B172: 32300 | C172: 을지대학병원 | D172: 표준형 | E172: A등급 | F172: 서구
A173: 165 | B173: 32320 | C173: 서구청 | D173: 표준형 | E173: A등급 | F173: 서구
A174: 166 | B174: 32330 | C174: 서구청 | D174: 표준형 | E174: A등급 | F174: 서구
A175: 167 | B175: 32380 | C175: 대전예술의전당 | D175: 구형 | E175: A등급 | F175: 서구
A176: 168 | B176: 32410 | C176: 시청역 | D176: 장대형 | E176: A등급 | F176: 서구
A177: 169 | B177: 32450 | C177: 사학연금회관 | D177: 구형 | E177: A등급 | F177: 서구
A178: 170 | B178: 32480 | C178: 법원.검찰청 | D178: 구형 | E178: A등급 | F178: 서구
A179: 171 | B179: 32490 | C179: 사학연금회관 | D179: 구형 | E179: A등급 | F179: 서구
A180: 172 | B180: 32500 | C180: 샘머리아파트 | D180: 구형 | E180: A등급 | F180: 서구
A181: 173 | B181: 32530 | C181: 목련아파트 | D181: 구형 | E181: A등급 | F181: 서구
A182: 174 | B182: 32540 | C182: 한가람아파트 | D182: 구형 | E182: A등급 | F182: 서구
A183: 175 | B183: 32560 | C183: 둥지아파트정문 | D183: 표준형 | E183: A등급 | F183: 서구
A184: 176 | B184: 32580 | C184: 충남고등학교 | D184: 표준형 | E184: A등급 | F184: 서구
A185: 177 | B185: 32590 | C185: 크로바아파트 | D185: 구형 | E185: A등급 | F185: 서구
A186: 178 | B186: 32620 | C186: 한밭초등학교 | D186: 구형 | E186: A등급 | F186: 서구
A187: 179 | B187: 32650 | C187: 가람아파트 | D187: 구형, 표준형 | E187: A등급 | F187: 서구 | H187: 단독 당첨 시 2개 승강장 모두 관리
A188: 180 | B188: 32660 | C188: 수정타운아파트 | D188: 장대형 | E188: A등급 | F188: 서구
A189: 181 | B189: 32730 | C189: 월평삼거리 | D189: 구형 | E189: A등급 | F189: 서구
A190: 182 | B190: 32740 | C190: 월평역 | D190: 표준형 | E190: A등급 | F190: 서구
A191: 183 | B191: 32750 | C191: 대전일보사 | D191: 구형 | E191: A등급 | F191: 서구
A192: 184 | B192: 32760 | C192: 대전일보사 | D192: 구형 | E192: A등급 | F192: 서구
A193: 185 | B193: 32770 | C193: 월평역 | D193: 구형 | E193: A등급 | F193: 서구
A194: 186 | B194: 32800 | C194: 진달래아파트 | D194: 구형 | E194: A등급 | F194: 서구
A195: 187 | B195: 32840 | C195: 황실타운아파트 | D195: 구형 | E195: A등급 | F195: 서구
A196: 188 | B196: 32860 | C196: 누리아파트 | D196: 구형 | E196: A등급 | F196: 서구
A197: 189 | B197: 32870 | C197: 갈마역 | D197: 구형 | E197: A등급 | F197: 서구
A198: 190 | B198: 32880 | C198: 누리아파트후문 | D198: 표준형 | E198: A등급 | F198: 서구
A199: 191 | B199: 32960 | C199: 선사유적지 | D199: 표준형 | E199: A등급 | F199: 서구
A200: 192 | B200: 32970 | C200: 통계센터 | D200: 구형 | E200: A등급 | F200: 서구
A201: 193 | B201: 32990 | C201: 건양대병원 | D201: 구형 | E201: A등급 | F201: 서구
A202: 194 | B202: 33040 | C202: 가수원육교.가수원시장 | D202: 표준형 | E202: A등급 | F202: 서구
A203: 195 | B203: 33070 | C203: 가수원육교.가수원시장 | D203: 장대형 | E203: A등급 | F203: 서구
A204: 196 | B204: 33200 | C204: 가수원네거리 | D204: 표준형 | E204: A등급 | F204: 서구
... 1236 more rows

Sheet Sheet6 (hidden)
L17: 11600
L18: 11590
G19: 11580 | H19: =M19 -> 5 | L19: 11580 | M19: 5
G20: 11550 | L20: 11550 | M20: 3
G21: 11520 | L21: 11520 | M21: 3
G22: 11530 | L22: 11530 | M22: 2
L23: 11510
